Workbook

Sheet User's Guide
C2: Tanzania: Water Sector Project
C6: Morogoro Water Supply Activity
B9: ERR Version | C9: Original ERR | D9: Closeout ERR
B10: Date of ERR | C10: 2007-08-24 | D10: 2016-02-08
B11: Amount of MCC funds | C11: $5.6 million | D11: $17.4 million
B12: Project Description | C12: Tanzania faces a serious shortage of access to potable water, resulting in a high incidence of water-related diseases, decreased workforce productivity, and constrained business growth. The Water Sector Project includes investments in bulk water supply for two urban areas, Dar es Salaam and Morogoro, which investments will increase the quantity and reliability of potable water for domestic and commercial use. By increasing the volume of water supply, the Water Sector Project is expected to reduce the incidence of water-related disease, increase time available for productive activities including education, promote greater investments in physical capital, and, ultimately, lead to an increase in income. | D12: Tanzania faces a serious shortage of water infrastructure, resulting in a high incidence of water-related diseases, decreased workforce productivity, and constrained business growth. The Morogoro Water Supply Activity rehabilitated a water intake and water treatment plant, expanded the capacity of the Morogoro municipal water system, improved the existing distribution network and provided technical support to MORUWASA. This is expected to lead to a decrease in household water treatment expenditures, improved health outcomes and additional water available for enterprises.
B13: Benefit streams included in ERR | C13: Increased income due to fewer sick days | D13: Reduced household expenditures on water treatment
C14: Increased income due to less downtime caring for sick children | D14: Diarrheal disease treatment cost savings
C15: Increased education (human capital) | D15: Reduced opportunity cost from fewer sick days
C16: Increased household investment (physical capital) | D16: Lifetime income gains due to decreased child stunting
C17: Increased business investment and economic activity | D17: Increased water available to enterprises
B18: Costs included in ERR (not borne by MCC) | C18: Operations and maintenance | D18: Increased water production and delivery costs
B19: ERR estimations and time horizon | C19: 5.6% over 20 years | D19: 4.2% over 20 years
B21: Table of Contents
B23: Activity Description
B24: One should read this sheet first, as it offers a summary of the project, a list of components, and states the economic rationale for the project.
B26: ERR & Sensitivity Analysis
B27: A brief summary of the project's key parameters and ERR calculations.
B29: ERR
B30: This sheet enumerates the project's investment benefits and costs over 20 years
B32: Assumptions
B33: Shows the assumed consumer profile and other assumptions used in the model.
B35: Costs
B36: Lists the costs of the project, along with MORUWASA operation and maintenance cost estimates.
B38: Savings
B39: Estimates the household cost savings from reduced water treatment over 20 years
B41: Health
B42: Estimates the benefits over 20 years from reduced diarrheal disease and improved health outcomes
B44: Commercial
B45: Estimates the benefits to businesses of additional water available for productive purposes.
B47: Beneficiaries
B48: Estimates the number of project beneficiaries.
B50: Poverty Scorecard
B51: This worksheet shows the cost effectiveness of the project broken out into different poverty categories.
B53: Sensitivity
B54: Displays the inputs and results of sensitivity analyses using summary parameters and a Monte Carlo simulation.

Sheet Activity Description
B2: Tanzania: Water Sector Project
B4: Morogoro Water Supply Activity
B6: Activity Design History
B8: Original Project
B10: Tanzania faces a serious shortage of access to potable water, resulting in a high incidence of water-related diseases, decreased workforce productivity, and constrained business growth. The Morogoro Water Activity includes investments in bulk water supply for the Morogoro municipal water system, which will increase the quantity and reliability of potable water for domestic and commercial use.
B12: Project Changes at Closeout
B13: Although the costs of the Morogoro Water Activity increased substantially from 2007 to 2014, the overall scope of the project did not change significantly.
B15: Activity Components
B17: 3. Morogoro Water Supply Activity. MCC Funding will be used to improve water supply in Morogoro and to help Morogoro Water and Sewarage Authority (MORUWASA) move towards achieving financial sustainability. Specifically, MCC Funding will support:
B18: a. Revised master plan, feasibility studies, final design and an additional environmental assessment, together with any resulting resettlement action plans and environmental management plans.
B19: b. Rehabilitation of Mambogo water intake and water treatment plant, including a water treatment plant with approximate capacity of 6,000,000 liters per day, and associated works.
B20: c. Improvements of water transfer in the existing distribution network, including rehabilitation of Mafiga water treatment plant facilities, about 1.9 km of pressure main, and associated works.
B21: d. Capacity building and technical support for MORUWASA.
B22: e. Project coordination and construction supervision of all improvements and upgrades under the Morogoro Water Supply Activity.
B24: Economic Rationale
B26: Original Project ERR
B28: In modeling the impact of MCC’s energy investments on economic growth and incomes, the original ERR included the following benefits related to growth in income:
B29: For the analysis of the Water Sector Project, benefits accrue through increases in one of two intermediate results: (1) average liters of water consumption per capita per day; and (2) increases in the fraction of households served by the water system. The specific benefit streams included in the model are:
B30: 1. Increased income due to fewer sick days. Reductions in morbidity associated with water-related disease decrease the number of days workers lose to illness. The existing prevalence rates of four key water-related illnesses (diarrhea, cholera, typhoid, and dysentery) are used to estimate the current number of days being lost to illness. The greater the increase in liters consumed, the lower the base level of liter consumption from which the individual begins, and the larger the increase in the fraction of households connected to the water system, the larger the drop in the prevalence of water-related disease.
B31: 2. Increased income due to less downtime caring for sick children. A similar exercise is used to determine the extra income that can be earned with the reduction in time needed to care for sick children. There are separate estimates of the amount of time needed to care for each bout of child water-related illness, and the prevalence of such illness among children. The methodology is, however, the same.
B32: 3. Increased education (human capital). Given the link between improved water supply and reductions in mortality (as well as morbidity), this analysis examines the implications of mortality reductions on the accumulation of both human and physical capital. Empirical evidence on mortality reductions associated with improved water supply suggests that reductions in overall human mortality of 4% due to the project are possible. This reduction is likely to lead to both increased schooling and increased investment by individuals in the affected area.
B33: 4. Increased household investment (physical capital). Empirical evidence also suggests that reduced mortality leads to greater rates of investment in physical capital, as individuals expect to enjoy a longer time span of returns from this capital. Our estimates suggest that GDP growth will be 0.15 percentage points higher due specifically to these effects.
B34: 5. Increased business investment and economic activity. Water is a key input into production for many industries, and increasing the supply of water to commercial industries should lead to increased investment and economic activity resulting in new jobs and added income for local households. As a result of water projects, the growth rate of local GDP is increased, if only during a transition period.
B36: Closeout ERR
B37: As described above, the original ERR model in 2007 used a methodology that relied on macroeconomic data and projected impacts to estimate project benefits. However, in the intervening years, MCC's standard practice for analyzing water, sanitation and hygience (WASH) interventions has coalesced around a microeconomic approach that estimates the benefits for individuals and households and aggregates them to estimate the overall project benefits.
B38: For the Morogoro Water Project, the individual and household benefits included in this cost-benefit analysis model are:
B39: 1. Reduced household expenditures on water treatment. Prior to the project, households in Morogoro did not trust the quality of the municipal water supply, so many of them treated water with boiling, bleach or filters to make it safer for consumption. With the expanded treatment capacity in the water system post-project, households will be able to forgo these treatment expenses, resulting in increased income for the household.
B40: 2. Improved health outcomes, resulting in:
B41: a. Treatment cost savings. The improved quality of the water is expected to result in a reduced incidence of diarrheal disease, so households will spend less each year on treating illnesses.
B42: b. Reduced opportunity cost from fewer sick days. The reduced incidence of diarrheal disease will also result in fewer people needing to miss work to care for themselves or family members, resulting in increased income over the course of a year or more.
B43: c. Lifetime income gains due to decreased child stunting. Several health studies, such as Teshome et al (2009), have shown that diarrheal disease increases the risks of stunting in children under five years of age. According to Alderman et al (2006), childhood stunting is correlated with reduced educational attainment, resulting in lower lifetime incomes. This model estimates the reduction in stunting resulting from a lower incidence of diarrheal disease and projects the subsequent increase in lifetime earnings using results from a Mincer regression to estimate returns to the additional years of education.
B44: 3. Increased water available to enterprises. Water is a key input into production for many industries, and increasing the supply of water to commercial industries should lead to increased investment and output in those industries. In many economic models, the increased volume of water supplied to commercial enterprises would be valued at those firms' willingness-to-pay for an additional cubic meter of water. However, because we do not have much data on Morogoro businesses' willingness-to-pay for water, this model estimates the value of the additional water at MORUWASA's current commercial tariff. Existing businesses have shown a willingness-to-pay at least at this current level, although it is possible that they could experience additional consumer surplus if they would be willing to pay much higher than MORUWASA's current tariff levels.
B46: Last updated: 11/13/2014

Sheet ERR & Sensitivity Analysis
B2: Tanzania: Morogoro Water Supply Activity | F2: Last updated: 2/8/2016
B4: ERR and sensitivity analysis
B6: Change the "User Input" cells in the table below to see the effect on the compact's Economic Rate of Return (ERR) and net benefits (see chart below). To reset all values to the default MCC estimates, click the "Reset Parameters" button at right. Be sure to reset all summary parameters to their original values ("MCC Estimate" values) before changing specific parameters.
B8: Parameter type | C8: Description of key parameters | D8: Parameter values
D9: User Input | E9: MCC Estimate | F9: Plausible range | G9: Values used in ERR computation | I9: All summary parameters set to initial values?
B10: Summary | C10: Actual costs as a percentage of estimated costs | D10: 1 | E10: 1 | F10: 80 - 120% | G10: =D10 -> 1 | I10: =IF(D10=E10,IF(D11=E11,"Y","N"),"N") -> Y
B11: Summary | C11: Actual benefits as a percentage of estimated benefits | D11: 1 | E11: 1 | F11: 80 - 120% | G11: =D11 -> 1
I12: All specific parameters set to initial values?
B13: Specific | C13: Volume of water treated by households (liters/person/day) | D13: 3 | E13: 3 | F13: 0-6 | G13: =IF($I$10="Y",D13,E13) -> 3 | I13: =IF(D13=E13,IF(D14=E14,IF(D15=E15,IF(D19=E19,"Y","N"),"N"),"N"), "N") -> Y
B14: Specific | C14: Cost of energy used to boil water (USD/kWh) | D14: 0.2155 | E14: 0.2155 | F14: 0.16 - 0.24 | G14: =IF($I$10="Y",D14,E14) -> 0.2155
B15: Specific | C15: Value of commercial water (Tsh/m3) | D15: 1050 | E15: 1050 | F15: 500 - 1,500 | G15: =D15 -> 1050 | I15: More Info
B16: Specific | C16: Proportion of NRW that is technical loss (%) | D16: 0.8 | E16: 0.8 | F16: 60-90% | G16: =D16 -> 0.8 | I16: Activity Description
B17: Specific | C17: Anticipated reduction in cases of disease (% of counterfactual) | D17: 0.17 | E17: 0.17 | F17: 0-35% | G17: =D17 -> 0.17 | I17: User's Guide
B18: Specific | C18: Phase-in period of health benefits (years) | D18: 3 | E18: 3 | F18: 1 - 5 | G18: =IF($I$10="Y",D18,E18) -> 3
B19: Specific | C19: Total cost per unit of water delivered (US$/m3) | D19: 0.81 | E19: 0.81 | F19: 0.40 - 1.00 | G19: =IF($I$10="Y",D19,E19) -> 0.81
B21: =IF(I10="N",IF(I13="N","Reminder: Please reset all summary parameters to original values before changing specific parameters. Specific parameters will only be used in ERR computation when all summary parameters are set to initial values",0),0) -> 0
C22: User Generated Economic rate of return (ERR): | D22: =ERR!F45 -> 0.0316877432
C24: MCC Estimated ERRs: | E24: Original | F24: Closeout*
D25: ERR | E25: 0.056 | F25: =Sensitivity!E71 -> 0.04188049798
D26: Date | E26: 2007-08-24 | F26: 2016-02-08
C28: User Generated Present Value (PV) of Benefits: | D28: =ERR!F39*10^6 -> 24781662.71 | E28: 2014 US$, 10% discount rate
C29: Present Value (PV) of Benefits*: | D29: =Sensitivity!E186*10^6 -> 8657771.538 | E29: 2014 US$, 10% discount rate
C32: Present Value (PV) of MCC Costs: | D32: =ERR!F42*10^6 -> 12742732.11 | E32: 2014 US$, 10% discount rate
C34: * The Closeout estimates are expected values based on a 10,000-trial Monte Carlo simulation, while the User Generated numbers above show the base case scenario.

Sheet ERR
B1: Tanzania: Morogoro Water Supply Activity | J1: Last updated: 2/8/2016
B2: Cost-Benefit Summary
E4: =IF('ERR & Sensitivity Analysis'!$I$10="N","Note: Current calculations are based on user input and are not the original MCC estimates.",IF('ERR & Sensitivity Analysis'!$I$13="N","Note: Current calculations are based on user input and are not the original MCC estimates.","")) -> 
E5: All figures in millions of US$ | F5: 2008 | G5: 2009 | H5: 2010 | I5: 2011 | J5: 2012 | K5: 2013 | L5: 2014 | M5: 2015 | N5: 2016 | O5: 2017 | P5: 2018 | Q5: 2019 | R5: 2020 | S5: 2021 | T5: 2022 | U5: 2023 | V5: 2024 | W5: 2025 | X5: 2026 | Y5: 2027 | Z5: 2028
E6: Year | F6: 0 | G6: 1 | H6: 2 | I6: 3 | J6: 4 | K6: 5 | L6: 6 | M6: 7 | N6: 8 | O6: 9 | P6: 10 | Q6: 11 | R6: 12 | S6: 13 | T6: 14 | U6: 15 | V6: 16 | W6: 17 | X6: 18 | Y6: 19 | Z6: 20
C7: Costs
E9: Disbursement rate | F9: =SUM(G9:K9) -> 1 | G9: 0 | H9: 0 | I9: 0.39 | J9: 0.32 | K9: =1-SUM(G9:J9) -> 0.29 | AC9: Present Value | AD9: % of Costs
C11: Investment costs | F11: =SUM(F12:F17) -> 18.40518811 | G11: 0 | H11: 0.095617 | I11: 7.140732733 | J11: 5.859062756 | K11: 5.309775622 | L11: 0 | M11: 0 | N11: 0 | O11: 0 | P11: 0 | Q11: 0 | R11: 0 | S11: 0 | T11: 0 | U11: 0 | V11: 0 | W11: 0 | X11: 0 | Y11: 0 | Z11: 0 | AC11: =NPV(0.1,G11:Z11) -> 12.74273211 | AD11: =AC11/AC$21 -> 0.4271310259
D12: Capital costs | F12: ='ERR & Sensitivity Analysis'!G10*capex/10^6 -> 13.64788535 | G12: =$F12*G$9 -> 0 | H12: 0 | I12: 5.322675287 | J12: 4.367323313 | K12: 3.957886752 | AC12: 9.439481589 | AD12: =AC12/AC$21 -> 0.3164074565
D13: Supervision | F13: ='ERR & Sensitivity Analysis'!G10*cost_spvs/10^6 -> 2.86124714 | G13: 0 | H13: 0 | I13: 1.115886385 | J13: 0.9155990848 | K13: 0.8297616706 | AC13: 1.978965166 | AD13: 0.06633408082
D14: Feasibility studies | F14: ='ERR & Sensitivity Analysis'!G10*cost_feas/10^6 -> 0.095617 | G14: 0 | H14: =F14 -> 0.095617 | I14: 0 | J14: 0 | K14: 0 | AC14: 0.07902231405 | AD14: 0.002648794763
D15: Technical assistance | F15: ='ERR & Sensitivity Analysis'!G10*cost_TA/10^6 -> 0.79387905 | G15: =$F15*G$9 -> 0 | H15: 0 | I15: 0.3096128295 | J15: 0.254041296 | K15: 0.2302249245 | AC15: 0.5490818895 | AD15: 0.01840499422
D16: Administrative costs | F16: ='ERR & Sensitivity Analysis'!G10*cost_admin/10^6 -> 0.5668332498 | G16: 0 | H16: 0 | I16: 0.2210649674 | J16: 0.1813866399 | K16: 0.1643816424 | AC16: 0.3920469646 | AD16: 0.01314124952
D17: M&E costs | F17: ='ERR & Sensitivity Analysis'!G10*cost_ME/10^6 -> 0.4397263193 | G17: 0 | H17: 0 | I17: 0.1714932645 | J17: 0.1407124222 | K17: 0.1275206326 | AC17: 0.3041341855 | AD17: 0.0101944501
C19: Increased water production and delivery costs | G19: =Commercial!G32/10^6 -> 0 | H19: =Commercial!H32/10^6 -> 0 | I19: =Commercial!I32/10^6 -> 0 | J19: =Commercial!J32/10^6 -> 0 | K19: =Commercial!K32/10^6 -> 0 | L19: =Commercial!L32/10^6 -> 3.618756 | M19: =Commercial!M32/10^6 -> 3.618756 | N19: =Commercial!N32/10^6 -> 3.618756 | O19: =Commercial!O32/10^6 -> 3.618756 | P19: =Commercial!P32/10^6 -> 3.618756 | Q19: =Commercial!Q32/10^6 -> 3.618756 | R19: =Commercial!R32/10^6 -> 3.618756 | S19: =Commercial!S32/10^6 -> 3.618756 | T19: =Commercial!T32/10^6 -> 3.618756 | U19: =Commercial!U32/10^6 -> 3.618756 | V19: =Commercial!V32/10^6 -> 3.618756 | W19: =Commercial!W32/10^6 -> 3.618756 | X19: =Commercial!X32/10^6 -> 3.618756 | Y19: =Commercial!Y32/10^6 -> 3.618756 | Z19: =Commercial!Z32/10^6 -> 3.618756 | AC19: =NPV(0.1,G19:Z19) -> 17.09057743 | AD19: 0.5728689741
C21: Total costs | G21: =G11+G19 -> 0 | H21: 0.095617 | I21: 7.140732733 | J21: 5.859062756 | K21: =K11+K19 -> 5.309775622 | L21: 3.618756 | M21: 3.618756 | N21: 3.618756 | O21: 3.618756 | P21: 3.618756 | Q21: 3.618756 | R21: 3.618756 | S21: 3.618756 | T21: 3.618756 | U21: 3.618756 | V21: 3.618756 | W21: 3.618756 | X21: 3.618756 | Y21: 3.618756 | Z21: 3.618756 | AC21: =NPV(0.1,G21:Z21) -> 29.83330953 | AD21: 1
C23: Benefits | AC23: Present Value | AD23: % of Benefits
C25: Reduced household expenditures on water treatment | G25: ='ERR & Sensitivity Analysis'!$G$11*Savings!G52/10^6 -> 0 | H25: ='ERR & Sensitivity Analysis'!$G$11*Savings!H52/10^6 -> 0 | I25: ='ERR & Sensitivity Analysis'!$G$11*Savings!I52/10^6 -> 0 | J25: ='ERR & Sensitivity Analysis'!$G$11*Savings!J52/10^6 -> 0 | K25: ='ERR & Sensitivity Analysis'!$G$11*Savings!K52/10^6 -> 0 | L25: ='ERR & Sensitivity Analysis'!$G$11*Savings!L52/10^6 -> 2.348140707 | M25: ='ERR & Sensitivity Analysis'!$G$11*Savings!M52/10^6 -> 2.426028907 | N25: ='ERR & Sensitivity Analysis'!$G$11*Savings!N52/10^6 -> 2.506500671 | O25: ='ERR & Sensitivity Analysis'!$G$11*Savings!O52/10^6 -> 2.589641696 | P25: ='ERR & Sensitivity Analysis'!$G$11*Savings!P52/10^6 -> 2.675540523 | Q25: ='ERR & Sensitivity Analysis'!$G$11*Savings!Q52/10^6 -> 2.764288627 | R25: ='ERR & Sensitivity Analysis'!$G$11*Savings!R52/10^6 -> 2.855980519 | S25: ='ERR & Sensitivity Analysis'!$G$11*Savings!S52/10^6 -> 2.950713847 | T25: ='ERR & Sensitivity Analysis'!$G$11*Savings!T52/10^6 -> 3.048589494 | U25: ='ERR & Sensitivity Analysis'!$G$11*Savings!U52/10^6 -> 3.149711691 | V25: ='ERR & Sensitivity Analysis'!$G$11*Savings!V52/10^6 -> 3.254188128 | W25: ='ERR & Sensitivity Analysis'!$G$11*Savings!W52/10^6 -> 3.362130065 | X25: ='ERR & Sensitivity Analysis'!$G$11*Savings!X52/10^6 -> 3.473652454 | Y25: ='ERR & Sensitivity Analysis'!$G$11*Savings!Y52/10^6 -> 3.588874057 | Z25: ='ERR & Sensitivity Analysis'!$G$11*Savings!Z52/10^6 -> 3.70791758 | AC25: =NPV(0.1,G25:Z25) -> 13.296011 | AD25: =AC25/$AC$34 -> 0.5365261872
C27: Improved health outcomes | G27: =SUM(G28:G30) -> 0 | H27: =SUM(H28:H30) -> 0 | I27: 0 | J27: 0 | K27: 0 | L27: 0.2691825281 | M27: 0.5562227106 | N27: 0.8620090594 | O27: 0.8906020368 | P27: 0.9201434479 | Q27: 0.9506647522 | R27: 0.982198453 | S27: 1.014778132 | T27: 1.048438483 | U27: 1.083215354 | V27: 1.11914578 | W27: 1.156268023 | X27: 1.194621617 | Y27: 1.234247406 | Z27: 1.275187588 | AC27: =NPV(0.1,G27:Z27) -> 4.126014591 | AD27: =AC27/$AC$34 -> 0.1664946634
D28: Treatment cost savings | G28: ='ERR & Sensitivity Analysis'!$G$11*Health!G43/10^6 -> 0 | H28: ='ERR & Sensitivity Analysis'!$G$11*Health!H43/10^6 -> 0 | I28: ='ERR & Sensitivity Analysis'!$G$11*Health!I43/10^6 -> 0 | J28: ='ERR & Sensitivity Analysis'!$G$11*Health!J43/10^6 -> 0 | K28: ='ERR & Sensitivity Analysis'!$G$11*Health!K43/10^6 -> 0 | L28: ='ERR & Sensitivity Analysis'!$G$11*Health!L43/10^6 -> 0.0004912353252 | M28: ='ERR & Sensitivity Analysis'!$G$11*Health!M43/10^6 -> 0.001015059358 | N28: ='ERR & Sensitivity Analysis'!$G$11*Health!N43/10^6 -> 0.001573093557 | O28: ='ERR & Sensitivity Analysis'!$G$11*Health!O43/10^6 -> 0.00162527332 | P28: ='ERR & Sensitivity Analysis'!$G$11*Health!P43/10^6 -> 0.001679183894 | Q28: ='ERR & Sensitivity Analysis'!$G$11*Health!Q43/10^6 -> 0.001734882691 | R28: ='ERR & Sensitivity Analysis'!$G$11*Health!R43/10^6 -> 0.001792429025 | S28: ='ERR & Sensitivity Analysis'!$G$11*Health!S43/10^6 -> 0.001851884181 | T28: ='ERR & Sensitivity Analysis'!$G$11*Health!T43/10^6 -> 0.001913311473 | U28: ='ERR & Sensitivity Analysis'!$G$11*Health!U43/10^6 -> 0.001976776318 | V28: ='ERR & Sensitivity Analysis'!$G$11*Health!V43/10^6 -> 0.002042346303 | W28: ='ERR & Sensitivity Analysis'!$G$11*Health!W43/10^6 -> 0.002110091254 | X28: ='ERR & Sensitivity Analysis'!$G$11*Health!X43/10^6 -> 0.002180083316 | Y28: ='ERR & Sensitivity Analysis'!$G$11*Health!Y43/10^6 -> 0.002252397026 | Z28: ='ERR & Sensitivity Analysis'!$G$11*Health!Z43/10^6 -> 0.002327109393 | AC28: 0.007529627326 | AD28: 0.0003038386655
D29: Reduced opportunity cost from fewer sick days | G29: ='ERR & Sensitivity Analysis'!$G$11*Health!G48/10^6 -> 0 | H29: ='ERR & Sensitivity Analysis'!$G$11*Health!H48/10^6 -> 0 | I29: ='ERR & Sensitivity Analysis'!$G$11*Health!I48/10^6 -> 0 | J29: ='ERR & Sensitivity Analysis'!$G$11*Health!J48/10^6 -> 0 | K29: ='ERR & Sensitivity Analysis'!$G$11*Health!K48/10^6 -> 0 | L29: ='ERR & Sensitivity Analysis'!$G$11*Health!L48/10^6 -> 0.002930211721 | M29: ='ERR & Sensitivity Analysis'!$G$11*Health!M48/10^6 -> 0.006054814618 | N29: ='ERR & Sensitivity Analysis'!$G$11*Health!N48/10^6 -> 0.009383480671 | O29: ='ERR & Sensitivity Analysis'!$G$11*Health!O48/10^6 -> 0.009694732215 | P29: ='ERR & Sensitivity Analysis'!$G$11*Health!P48/10^6 -> 0.01001630802 | Q29: ='ERR & Sensitivity Analysis'!$G$11*Health!Q48/10^6 -> 0.01034855055 | R29: ='ERR & Sensitivity Analysis'!$G$11*Health!R48/10^6 -> 0.01069181362 | S29: ='ERR & Sensitivity Analysis'!$G$11*Health!S48/10^6 -> 0.01104646277 | T29: ='ERR & Sensitivity Analysis'!$G$11*Health!T48/10^6 -> 0.0114128757 | U29: ='ERR & Sensitivity Analysis'!$G$11*Health!U48/10^6 -> 0.0117914426 | V29: ='ERR & Sensitivity Analysis'!$G$11*Health!V48/10^6 -> 0.01218256662 | W29: ='ERR & Sensitivity Analysis'!$G$11*Health!W48/10^6 -> 0.01258666429 | X29: ='ERR & Sensitivity Analysis'!$G$11*Health!X48/10^6 -> 0.01300416594 | Y29: ='ERR & Sensitivity Analysis'!$G$11*Health!Y48/10^6 -> 0.01343551619 | Z29: ='ERR & Sensitivity Analysis'!$G$11*Health!Z48/10^6 -> 0.0138811744 | AC29: 0.0449141198 | AD29: 0.001812393314
D30: Lifetime income gains due to decreased child stunting | G30: ='ERR & Sensitivity Analysis'!$G$11*Health!G53/10^6 -> 0 | H30: ='ERR & Sensitivity Analysis'!$G$11*Health!H53/10^6 -> 0 | I30: ='ERR & Sensitivity Analysis'!$G$11*Health!I53/10^6 -> 0 | J30: ='ERR & Sensitivity Analysis'!$G$11*Health!J53/10^6 -> 0 | K30: ='ERR & Sensitivity Analysis'!$G$11*Health!K53/10^6 -> 0 | L30: ='ERR & Sensitivity Analysis'!$G$11*Health!L53/10^6 -> 0.2657610811 | M30: ='ERR & Sensitivity Analysis'!$G$11*Health!M53/10^6 -> 0.5491528367 | N30: ='ERR & Sensitivity Analysis'!$G$11*Health!N53/10^6 -> 0.8510524852 | O30: ='ERR & Sensitivity Analysis'!$G$11*Health!O53/10^6 -> 0.8792820313 | P30: ='ERR & Sensitivity Analysis'!$G$11*Health!P53/10^6 -> 0.9084479559 | Q30: ='ERR & Sensitivity Analysis'!$G$11*Health!Q53/10^6 -> 0.9385813189 | R30: ='ERR & Sensitivity Analysis'!$G$11*Health!R53/10^6 -> 0.9697142103 | S30: ='ERR & Sensitivity Analysis'!$G$11*Health!S53/10^6 -> 1.001879785 | T30: ='ERR & Sensitivity Analysis'!$G$11*Health!T53/10^6 -> 1.035112296 | U30: ='ERR & Sensitivity Analysis'!$G$11*Health!U53/10^6 -> 1.069447136 | V30: ='ERR & Sensitivity Analysis'!$G$11*Health!V53/10^6 -> 1.104920867 | W30: ='ERR & Sensitivity Analysis'!$G$11*Health!W53/10^6 -> 1.141571268 | X30: ='ERR & Sensitivity Analysis'!$G$11*Health!X53/10^6 -> 1.179437368 | Y30: ='ERR & Sensitivity Analysis'!$G$11*Health!Y53/10^6 -> 1.218559493 | Z30: ='ERR & Sensitivity Analysis'!$G$11*Health!Z53/10^6 -> 1.258979304 | AC30: 4.073570844 | AD30: 0.1643784314
C32: Increased water available to enterprises | G32: ='ERR & Sensitivity Analysis'!$G$11*Commercial!G28/10^6 -> 0 | H32: ='ERR & Sensitivity Analysis'!$G$11*Commercial!H28/10^6 -> 0 | I32: ='ERR & Sensitivity Analysis'!$G$11*Commercial!I28/10^6 -> 0 | J32: ='ERR & Sensitivity Analysis'!$G$11*Commercial!J28/10^6 -> 0 | K32: ='ERR & Sensitivity Analysis'!$G$11*Commercial!K28/10^6 -> 0 | L32: ='ERR & Sensitivity Analysis'!$G$11*Commercial!L28/10^6 -> 2.360100523 | M32: ='ERR & Sensitivity Analysis'!$G$11*Commercial!M28/10^6 -> 2.226421833 | N32: ='ERR & Sensitivity Analysis'!$G$11*Commercial!N28/10^6 -> 2.088308999 | O32: ='ERR & Sensitivity Analysis'!$G$11*Commercial!O28/10^6 -> 1.94561494 | P32: ='ERR & Sensitivity Analysis'!$G$11*Commercial!P28/10^6 -> 1.798187697 | Q32: ='ERR & Sensitivity Analysis'!$G$11*Commercial!Q28/10^6 -> 1.645870269 | R32: ='ERR & Sensitivity Analysis'!$G$11*Commercial!R28/10^6 -> 1.488500447 | S32: ='ERR & Sensitivity Analysis'!$G$11*Commercial!S28/10^6 -> 1.325910644 | T32: ='ERR & Sensitivity Analysis'!$G$11*Commercial!T28/10^6 -> 1.157927711 | U32: ='ERR & Sensitivity Analysis'!$G$11*Commercial!U28/10^6 -> 0.9843727569 | V32: ='ERR & Sensitivity Analysis'!$G$11*Commercial!V28/10^6 -> 0.8050609578 | W32: ='ERR & Sensitivity Analysis'!$G$11*Commercial!W28/10^6 -> 0.6198013579 | X32: ='ERR & Sensitivity Analysis'!$G$11*Commercial!X28/10^6 -> 0.4283966677 | Y32: ='ERR & Sensitivity Analysis'!$G$11*Commercial!Y28/10^6 -> 0.2306430535 | Z32: ='ERR & Sensitivity Analysis'!$G$11*Commercial!Z28/10^6 -> 0.02632992047 | AC32: 7.359637111 | AD32: 0.2969791494
C34: Total benefits | G34: =SUM(G25,G27,G32) -> 0 | H34: =SUM(H25,H27,H32) -> 0 | I34: 0 | J34: 0 | K34: 0 | L34: 4.977423758 | M34: 5.20867345 | N34: 5.456818729 | O34: 5.425858673 | P34: 5.393871667 | Q34: 5.360823647 | R34: 5.326679419 | S34: 5.291402622 | T34: 5.254955688 | U34: 5.217299803 | V34: 5.178394866 | W34: 5.138199446 | X34: 5.096670738 | Y34: 5.053764517 | Z34: 5.009435088 | AC34: 24.78166271 | AD34: 1
D35: Net local benefits | G35: =G34-G19 -> 0 | H35: =H34-H19 -> 0 | I35: 0 | J35: 0 | K35: 0 | L35: 1.358667758 | M35: 1.58991745 | N35: 1.838062729 | O35: 1.807102673 | P35: 1.775115667 | Q35: 1.742067647 | R35: 1.707923419 | S35: 1.672646622 | T35: 1.636199688 | U35: 1.598543803 | V35: 1.559638866 | W35: 1.519443446 | X35: 1.477914738 | Y35: 1.435008517 | Z35: 1.390679088 | AC35: 7.69108528
C37: Net benefits | G37: =G34-G21 -> 0 | H37: -0.095617 | I37: -7.140732733 | J37: -5.859062756 | K37: -5.309775622 | L37: 1.358667758 | M37: 1.58991745 | N37: 1.838062729 | O37: 1.807102673 | P37: 1.775115667 | Q37: 1.742067647 | R37: 1.707923419 | S37: 1.672646622 | T37: 1.636199688 | U37: 1.598543803 | V37: 1.559638866 | W37: 1.519443446 | X37: 1.477914738 | Y37: 1.435008517 | Z37: 1.390679088
C39: Present value of benefits | F39: =NPV(0.1,G34:Z34) -> 24.78166271
D40: Present value of local benefits | F40: =AC35 -> 7.69108528
C41: Present value of costs | F41: =NPV(0.1,G21:Z21) -> 29.83330953
D42: Present value of investment costs | F42: =NPV(0.1,G11:K11) -> 12.74273211
C43: Total Net Present Value | F43: =NPV(0.1,G37:Z37) -> -5.051646828
E45: ERR (20 years): | F45: =IRR(G37:Z37) -> 0.0316877432
C49: Note
C50: To simplify review, the calculations on this worksheet use formula names that reference calculations elsewhere in this workbook. To see a list of these formula names, click on Formulas --> Name Manager, or use the drop down menu in the upper left corner of the formula bar.

Sheet Assumptions
B1: Tanzania: Morogoro Water Supply Activity | J1: Last updated: 2/8/2016
B2: Consumer Profile & Assumptions
B4: =IF('ERR & Sensitivity Analysis'!$I$10="N","Note: Current calculations are based on user input and are not the original MCC estimates.",IF('ERR & Sensitivity Analysis'!$I$13="N","Note: Current calculations are based on user input and are not the original MCC estimates.","")) -> 
B6: Without Project | L6: Household Treatment Costs
K7: =A74 -> 8 | L7: Volume treated (liters/capita/day) | M7: ='ERR & Sensitivity Analysis'!G13 -> 3
A8: =A67 -> 1 | B8: Primary drinking water source | C8: % of HH | D8: Liters / capita / day (lpcpd) | E8: Cost of water (Tsh/liter) | F8: % of water treated | G8: Treatment cost (Tsh/liter) | H8: Total cost (Tsh/liter) | L8: Cost of boiling water | M8: Column1
B9: Own tap | C9: 0.52 | D9: 103.5 | E9: =M28/1000 -> 0.75 | F9: =M7/Table4[[#This Row],[Liters / capita / day (lpcpd)]] -> 0.02898550725 | G9: =SUMPRODUCT(C16:G16,C$21:G$21) -> 15.96704179 | H9: =Table4[[#This Row],[Cost of water (Tsh/liter)]]+(Table4[[#This Row],[% of water treated]]*Table4[[#This Row],[Treatment cost (Tsh/liter)]]) -> 1.212812805 | K9: =A76 -> 9 | L9: Average annual temperature in Morogoro (Co) | M9: 23.9
B10: Other piped | C10: 0.39 | D10: 5.5 | E10: =M28/1000 -> 0.75 | F10: =M7/Table4[[#This Row],[Liters / capita / day (lpcpd)]] -> 0.5454545455 | G10: =SUMPRODUCT(C17:G17,C$21:G$21) -> 7.97432409 | H10: =Table4[[#This Row],[Cost of water (Tsh/liter)]]+(Table4[[#This Row],[% of water treated]]*Table4[[#This Row],[Treatment cost (Tsh/liter)]]) -> 5.099631322 | K10: =A78 -> 10 | L10: Energy required to boil 1 liter water in Morogoro (kcal) | M10: =100-M9 -> 76.1
B11: Vendors | C11: 0.04 | D11: 12 | E11: =1200/1000 -> 1.2 | F11: 0.11 | G11: =SUMPRODUCT(C18:G18,C$21:G$21) -> 15.18191192 | H11: =Table4[[#This Row],[Cost of water (Tsh/liter)]]+(Table4[[#This Row],[% of water treated]]*Table4[[#This Row],[Treatment cost (Tsh/liter)]]) -> 2.870010311 | K11: =A80 -> 11 | L11: Energy required to boil 1 liter water in Morogoro (kWh) | M11: =M10*0.001163 -> 0.0885043
A12: =A68 -> 2 | B12: Non‐Tap | C12: 0.05 | D12: 6.5 | E12: 0 | F12: =IF(D12>M$7,$M$7/D12,1) -> 0.4615384615 | G12: =SUMPRODUCT(C19:G19,C$21:G$21) -> 5.510134267 | H12: =Table4[[#This Row],[Cost of water (Tsh/liter)]]+(Table4[[#This Row],[% of water treated]]*Table4[[#This Row],[Treatment cost (Tsh/liter)]]) -> 2.543138892 | K12: =A82 -> 12 | L12: Cost of energy (Tsh/kWh) | M12: ='ERR & Sensitivity Analysis'!G14*Tsh_USD -> 348.0325
A13: =A69 -> 3 | B13: Total | C13: =SUM(C9:C12) -> 1 | D13: =SUMPRODUCT(C9:C12,D9:D12) -> 56.77 | L13: Treatment cost (Tsh/liter) | M13: =M11*M12 -> 30.80237279
A15: =A70 -> 4 | B15: Primary drinking water source | C15: Boil | D15: Disinfect | E15: Filter | F15: Let settle | G15: None | H15: Total | I15: % Treating | L15: Cost of disinfecting water | M15: Column1
B16: Own tap | C16: 0.51 | D16: 0.04 | E16: 0.05 | F16: 0.16 | G16: 0.24 | H16: 1 | I16: =SUM(Table5[[#This Row],[Boil]:[Let settle]]) -> 0.76 | K16: =A83 -> 13 | L16: Price of bleach (Tsh/liter) | M16: 10000
B17: Other piped | C17: 0.25 | D17: 0.03 | E17: 0.06 | F17: 0.18 | G17: 0.48 | H17: 1 | I17: =SUM(Table5[[#This Row],[Boil]:[Let settle]]) -> 0.52 | K17: =A84 -> 14 | L17: Dose (mL/liter) | M17: =0.75/3.785 -> 0.1981505945
B18: Vendors | C18: 0.48 | D18: 0.02 | E18: 0.1 | F18: 0.08 | G18: 0.32 | H18: 1 | I18: =SUM(Table5[[#This Row],[Boil]:[Let settle]]) -> 0.68 | L18: Treatment cost (Tsh/liter) | M18: =M16/1000*M17 -> 1.981505945
B19: Non‐Tap | C19: 0.17 | D19: 0.03 | E19: 0.06 | F19: 0.28 | G19: 0.46 | H19: 1 | I19: =SUM(Table5[[#This Row],[Boil]:[Let settle]]) -> 0.54
B20: Total | C20: 0.39 | D20: 0.04 | E20: 0.06 | F20: 0.16 | G20: 0.35 | H20: 1 | I20: =SUM(Table5[[#This Row],[Boil]:[Let settle]]) -> 0.65 | L20: Cost of filtering water | M20: Column1
B21: Treatment cost (Tsh/liter) | C21: =M13 -> 30.80237279 | D21: =M18 -> 1.981505945 | E21: =M23 -> 3.571428571 | F21: 0 | G21: 0 | K21: =A86 -> 15 | L21: Price of filter (Tsh) | M21: 25000
L22: Capacity of filter (liters) | M22: 7000
B23: Clean without project? | L23: Treatment cost (Tsh/liter) | M23: =M21/M22 -> 3.571428571
A24: 3 | B24: Primary drinking water source | C24: Boil | D24: Disinfect | E24: Filter | F24: Let settle | G24: None | H24: Clean % | I24: Unclean %
B25: Own tap | C25: yes | D25: yes | E25: no | F25: no | G25: no | H25: =SUMIF(Table6[[#This Row],[Boil]:[None]],"yes",C16:G16) -> 0.55 | I25: =SUMIF(Table6[[#This Row],[Boil]:[None]],"no",C16:G16) -> 0.45
B26: Other piped | C26: yes | D26: yes | E26: no | F26: no | G26: no | H26: =SUMIF(Table6[[#This Row],[Boil]:[None]],"yes",C17:G17) -> 0.28 | I26: =SUMIF(Table6[[#This Row],[Boil]:[None]],"no",C17:G17) -> 0.72 | L26: MORUWASA Service
B27: Vendors | C27: yes | D27: yes | E27: no | F27: no | G27: no | H27: =SUMIF(Table6[[#This Row],[Boil]:[None]],"yes",C18:G18) -> 0.5 | I27: =SUMIF(Table6[[#This Row],[Boil]:[None]],"no",C18:G18) -> 0.5 | L27: Column1 | M27: w/o Project | N27: w/Project
B28: Non‐Tap | C28: yes | D28: yes | E28: no | F28: no | G28: no | H28: =SUMIF(Table6[[#This Row],[Boil]:[None]],"yes",C19:G19) -> 0.2 | I28: =SUMIF(Table6[[#This Row],[Boil]:[None]],"no",C19:G19) -> 0.8 | K28: =A88 -> 16 | L28: MORUWASA domestic tariff (Tsh/m3) | M28: 750 | N28: -
B29: Total | H29: =SUMPRODUCT(C9:C12,Table6[Clean %]) -> 0.4252 | I29: =SUMPRODUCT(C9:C12,Table6[Unclean %]) -> 0.5748 | K29: =K28 -> 16 | L29: MORUWASA commercial tariff (Tsh/m3) | M29: ='ERR & Sensitivity Analysis'!G15 -> 1050 | N29: -
K30: =A90 -> 17 | L30: Production capacity (m3/day) | M30: 18000 | N30: 33000
K31: =A90 -> 17 | L31: Non-revenue water (NRW) (% of production) | M31: 0 | N31: 0.23
K32: =A91 -> 18 | L32: Proportion of NRW that is technical loss (%) | M32: 0 | N32: ='ERR & Sensitivity Analysis'!G16 -> 0.8
B33: Column1 | C33: MORUWASA | D33: Other | E33: Total | K33: =A92 -> 19 | L33: Total cost per unit delivered (US$/m3) | M33: 0 | N33: ='ERR & Sensitivity Analysis'!G19 -> 0.81
B34: Avg cost (Tsh/liter) of clean water, without project | C34: =(C9/SUM(C9:C10)*H9)+(C10/SUM(C9:C10)*H10) -> 2.87859217 | D34: =(C11/SUM(C11:C12)*H11)+(C12/SUM(C11:C12)*H12) -> 2.688415078 | E34: =SUMPRODUCT(C9:C12,H9:H12) -> 2.861476231
B35: Avg volume of water, without project | C35: =(C9/SUM(C9:C10)*D9)+(C10/SUM(C9:C10)*D10) -> 61.5 | D35: =(C12/SUM(C12:C13)*H12)+(C13/SUM(C12:C13)*H13) -> 0.121101852 | E35: =SUMPRODUCT(C10:C13,H10:H13) -> 2.230813573 | L35: Health | M35: w/o Project | N35: w/Project
K36: =A93 -> 20 | L36: Prevalence of diarrheal disease, age < 5 | M36: 0.13 | N36: =M36*(1-$N$39) -> 0.1079
B37: With Project | K37: =K36 -> 20 | L37: Prevalence of diarrheal disease, age 5-18 | M37: 0.05 | N37: =M37*(1-$N$39) -> 0.0415
K38: =A94 -> 21 | L38: Prevalence of diarrheal disease, age> 18 | M38: 0.05 | N38: =M38*(1-$N$39) -> 0.0415
A39: =A72 -> 6 | B39: Primary drinking water source | C39: % of HH | D39: Liters / capita / day (lpcpd) | E39: Cost of water (Tsh/liter) | F39: % of water treated | G39: Treatment cost (Tsh/liter) | H39: Total cost (Tsh/liter) | K39: 22 | L39: Anticipated % reduction in cases of disease | M39: - | N39: ='ERR & Sensitivity Analysis'!G17 -> 0.17
A40: % | B40: Own tap | C40: 0.52 | D40: =D9 -> 103.5 | E40: =E9 -> 0.75 | F40: 0 | G40: =SUMPRODUCT(C48:G48,C$21:G$21) -> 0 | H40: =Table7[[#This Row],[Cost of water (Tsh/liter)]]+(Table7[[#This Row],[% of water treated]]*Table7[[#This Row],[Treatment cost (Tsh/liter)]]) -> 0.75 | K40: 23 | L40: Diarrheal treatment costs (Tsh) | M40: 748 | N40: -
B41: Other piped | C41: 0.39 | D41: =D10 -> 5.5 | E41: =E10 -> 0.75 | F41: 0 | G41: =SUMPRODUCT(C49:G49,C$21:G$21) -> 0 | H41: =Table7[[#This Row],[Cost of water (Tsh/liter)]]+(Table7[[#This Row],[% of water treated]]*Table7[[#This Row],[Treatment cost (Tsh/liter)]]) -> 0.75 | K41: 24 | L41: Average work days missed per case of disease | M41: 0.338 | N41: -
B42: Vendors | C42: 0.04 | D42: 12 | E42: =E11 -> 1.2 | F42: 0.11 | G42: =SUMPRODUCT(C50:G50,C$21:G$21) -> 15.18191192 | H42: =Table7[[#This Row],[Cost of water (Tsh/liter)]]+(Table7[[#This Row],[% of water treated]]*Table7[[#This Row],[Treatment cost (Tsh/liter)]]) -> 2.870010311 | K42: 25 | L42: Average daily wage (Tsh) | M42: 15517.22 | N42: -
B43: Non‐Tap | C43: 0.05 | D43: 6.5 | E43: =E12 -> 0 | F43: 0.11 | G43: =SUMPRODUCT(C51:G51,C$21:G$21) -> 5.510134267 | H43: =Table7[[#This Row],[Cost of water (Tsh/liter)]]+(Table7[[#This Row],[% of water treated]]*Table7[[#This Row],[Treatment cost (Tsh/liter)]]) -> 0.6061147694 | K43: 26 | L43: Probability of employment | M43: 0.8507077544 | N43: -
B44: Total | C44: =SUM(C40:C43) -> 1 | D44: =SUMPRODUCT(C40:C43,D40:D43) -> 56.77
K45: =A100 -> 27 | L45: Percentage of stunted children in Tanzania, low height for age | M45: 0.425 | N45: -
L46: Odds of stunting for children, age <5 | M46: =M45/(1-M45) -> 0.7391304348 | N46: -
A47: =A73 -> 7 | B47: Primary drinking water source | C47: Boil | D47: Disinfect | E47: Filter | F47: Let settle | G47: None | H47: Total | K47: =A101 -> 28 | L47: Odds ratio of stunting for children age<5 with diarrhea | M47: 2.289 | N47: -
B48: Own tap | C48: 0 | D48: 0 | E48: 0 | F48: 0 | G48: 1 | H48: 1 | L48: Odds of stunting for children age<5 with diarrhea | M48: =M46*M47 -> 1.691869565 | N48: -
B49: Other piped | C49: 0 | D49: 0 | E49: 0 | F49: 0 | G49: 1 | H49: 1 | L49: Probability of stunting for children age<5 with diarrhea | M49: =M48/(1+M48) -> 0.6285109751 | N49: -
B50: Vendors | C50: 0.48 | D50: 0.02 | E50: 0.1 | F50: 0.08 | G50: 0.32 | H50: 1 | K50: =A102 -> 29 | L50: Return to an additional year of schooling, Tanzania | M50: 0.166 | N50: -
B51: Non‐Tap | C51: 0.17 | D51: 0.03 | E51: 0.06 | F51: 0.28 | G51: 0.46 | H51: 1 | K51: =A103 -> 30 | L51: Fewer years of schooling due to stunting | M51: 0.85 | N51: -
B52: Total | C52: 0.39 | D52: 0.04 | E52: 0.06 | F52: 0.16 | G52: 0.35 | H52: 1
K53: =A104 -> 31 | L53: Phase-in period of health benefits (years) | M53: - | N53: ='ERR & Sensitivity Analysis'!G18 -> 3
B54: Clean with project? | K54: =Assumptions!A105 -> 32 | L54: US-Tanzania Exchange rate | M54: 1615 | N54: -
B55: Primary drinking water source | C55: Boil | D55: Disinfect | E55: Filter | F55: Let settle | G55: None | H55: Clean % | I55: Unclean %
B56: Own tap | C56: yes | D56: yes | E56: yes | F56: yes | G56: yes | H56: =SUMIF(Table9[[#This Row],[Boil]:[None]],"yes",C48:G48) -> 1 | I56: =SUMIF(Table9[[#This Row],[Boil]:[None]],"no",C48:G48) -> 0
B57: Other piped | C57: yes | D57: yes | E57: yes | F57: yes | G57: yes | H57: =SUMIF(Table9[[#This Row],[Boil]:[None]],"yes",C49:G49) -> 1 | I57: =SUMIF(Table9[[#This Row],[Boil]:[None]],"no",C49:G49) -> 0
B58: Vendors | C58: yes | D58: yes | E58: no | F58: no | G58: no | H58: =SUMIF(Table9[[#This Row],[Boil]:[None]],"yes",C50:G50) -> 0.5 | I58: =SUMIF(Table9[[#This Row],[Boil]:[None]],"no",C50:G50) -> 0.5
B59: Non‐Tap | C59: yes | D59: yes | E59: no | F59: no | G59: no | H59: =SUMIF(Table9[[#This Row],[Boil]:[None]],"yes",C51:G51) -> 0.2 | I59: =SUMIF(Table9[[#This Row],[Boil]:[None]],"no",C51:G51) -> 0.8
B60: Total | H60: =SUMPRODUCT(C40:C43,Table9[Clean %]) -> 0.94 | I60: =SUMPRODUCT(C40:C43,Table9[Unclean %]) -> 0.06
B62: Column1 | C62: MORUWASA | D62: Other | E62: Total
B63: Avg cost (Tsh/liter) of clean water, with project | C63: =(C40/SUM(C40:C41)*H40)+(C41/SUM(C40:C41)*H41) -> 0.75 | D63: =(C42/SUM(C42:C43)*H42)+(C43/SUM(C42:C43)*H43) -> 1.612290565 | E63: =SUMPRODUCT(C40:C43,H40:H43) -> 0.8276061509
B66: Notes
A67: 1 | B67: Impact Evaluation Baseline Report (2014), Table 36. Bottled water, which represents <1% of responses, is combined with water from vendors in this analysis.
A68: 2 | B68: According to the Impact Evaluation Baseline Report (2014), "non-tap" includes boreholes, unprotected and protected wells/springs and surface water. For the purposes of this analysis, surface water is assumed.\
A69: 3 | B69: Per capita consumption estimates from Impact Evaluation Baseline Report (2014). Table 85, p. 217.
A70: 4 | B70: Impact Evaluation Baseline Report (2014), Table 82.
A71: 5 | B71: For the purposes of this analysis "Non-tap" is assumed to be gathering water from surface sources.
A72: 6 | B72: Impact Evaluation Baseline Report (2014), Table 82.
A73: 7 | B73: Assumes that additional capacity of water treatment plant will lead to cleaner water, eliminating the need for people using piped connections to treat water.
A74: 8 | B74: Assumption based on medical recommendation that adults should consume about 3 liters of fluid per day (see below).
B75: http://bit.ly/1dHvzTS
A76: 9 | B76: Weatherbase (2014). Climate summary for Morogoro, Tanzania. Accessed 11/3/14.
B77: http://www.weatherbase.com/weather/weather-summary.php3?s=166836&cityname=Morogoro%2C+Morogoro%2C+Tanzania&units=metric
A78: 10 | B78: MedicineNet.com (2014). By definition, a kilocalorie is the amount of energy required to raise the temperature of a liter of water one degree centigrade (Celsius) at sea level. Because Morogoro lies at an elevation of 579 meters, it is likely that slightly less energy would be required to boil water there, so this should be treated as a high estimate. Accessed 11/3/14.
B79: http://www.medicinenet.com/script/main/art.asp?articlekey=8568
A80: 11 | B80: UnitJuggler.com (2014). Conversion rate for kcal to kWh.
B81: http://www.unitjuggler.com/convert-energy-from-kWh-to-kcal.html
A82: 12 | B82: Long-run marginal cost of electricity from the Tanzania Energy ERR models. (Estimate from Mott MacDonald Inc., based on Tanesco PSMP 2012.) Because many people will use less energy efficient fuels, such as wood, to boil their water, this estimate should be treated as the minimum cost required to boil water. The actual cost to consumers likely would be higher.
A83: 13 | B83: Assumption
A84: 14 | B84: Centers for Disease Control:
B85: http://www.cdc.gov/healthywater/pdf/emergency/09_202278-B_Make_Water_Safe_Flyer_508.pdf
A86: 15 | B86: Based info for siphon water filter found at address below. This represents the upper end of the potential filtering cost, as it is more likely that people filter the water through a simple cloth or by skimming the containers as described in the Evaluation Baseline Report, p. 148.
B87: http://www.connectinternational.nl/english/smartmodules/smart-tec/water-treatment/siphonwaterfilter
A88: 16 | B88: In addition to the variable tariff, MORUWASA also charges domestic customers a flat 1500/month service charge and commercial customers a 2000/month service charge. MORUWASA Tariff Rates found at:
B89: http://moruwasa.co.tz/home/index.php?option=com_content&task=view&id=33&Itemid=48
A90: 17 | B90: EWURA (2013). Water Utilities Performance Review Report 2012/13. Appendix 1: Utility Profiles, p. 67.
A91: 18 | B91: Assumption. MCC assumed 80% in a similar model in Zambia.
A92: 19 | B92: Shkaratan (2012). Tanzania's Infrastructure: A Continental Perspective. World Bank Working Paper WPS5962. Table 7b.
A93: 20 | B93: Impact Evaluation Baseline Report (2014), Table 87.
A94: 21 | B94: The baseline report did not report data on adult diarrhea prevalence, so it is assumed to be equal to that of older children.
A95: 22 | B95: Cairncross et al (2010). Water, sanitation and hygiene for the prevention of diarrhoea. The International Journal of Epidemiology, Volume 39, Issue suppl 2, Pages i193-i205.
A96: 23 | B96: Impact Evaluation Baseline Report (2014), Table 89.
A97: 24 | B97: Impact Evaluation Baseline Report (2014), Table 68.
A98: 25 | B98: Author's estimates using 2011 National Panel Survey data and updated to 2014 prices.
A99: 26 | B99: Impact Evaluation Baseline Report (2014), Table 29. Weighted average of males and females employed in paid or home labor.
A100: 27 | B100: World Development Indicators (2014). Based on 2010 Demographic and Health Survey. National Bureau of Statistics (NBS) and ICF MacroTanzania. Dar es Salaam, Tanzania: NBS and ICF Macro, 2011 (and additional analysis).
A101: 28 | B101: Teshome et al (2009). Magnitude and determinants of stunting in children under-five years of age in food surplus region of Ethiopia: The case of West Gojam Zone. Ethiop J Health Dev 2009, 23(2):98-106.
A102: 29 | B102: Montenegro and Patrinos (2014). Comparable estimates of returns to schooling around the world. World Bank Policy Research Working Paper 7020 (WPS7020). The most recent returns to education listed in this paper is 2011.
A103: 30 | B103: Alderman et al (2006). Long term consequences of early childhood malnutrition. Oxf. Econ. Pap. (2006) 58 (3): 450-474. doi: 10.1093/oep/gpl008.
A104: 31 | B104: Assumption
A105: 32 | B105: Calculated using data from IMF World Economic Outlook Database, April 2014.

Sheet Costs
B1: Tanzania: Morogoro Water Supply Activity | K1: Last updated: 2/8/2016
B2: Costs
B3: =IF('ERR & Sensitivity Analysis'!$I$10="N","Note: Current calculations are based on user input and are not the original MCC estimates.",IF('ERR & Sensitivity Analysis'!$I$13="N","Note: Current calculations are based on user input and are not the original MCC estimates.","")) -> 
A5: =A27 -> 1 | B5: Investment costs (US$) | C5: MCA-T | D5: GoT | E5: Total
B6: Capital costs | C6: 10365042.32 | D6: 3282843.029 | E6: =SUM(C6:D6) -> 13647885.35
B7: Supervision | C7: 2085839.54 | D7: 775407.6 | E7: 2861247.14
B8: Feasibility studies | C8: 95617 | D8: 0 | E8: 95617
B9: Technical assistance | C9: 793879.05 | D9: 0 | E9: 793879.05
B10: Administrative costs | C10: 566833.2498 | D10: 0 | E10: 566833.2498
B11: Monitoring and evaluation (M&E) costs | C11: 439726.3193 | D11: 0 | E11: 439726.3193
B12: Total w/o Administrative, M&E | C12: =SUM(C6:C9) -> 13340377.91 | D12: =SUM(D6:D9) -> 4058250.629 | E12: =SUM(E6:E9) -> 17398628.54
B13: Total | C13: =SUM(C6:C11) -> 14346937.48 | D13: =SUM(D6:D11) -> 4058250.629 | E13: =SUM(E6:E11) -> 18405188.11
B16: MORUWASA operation and maintenance costs | C16: 2012-13
A17: =A28 -> 2 | B17: Water production (m3) | C17: 8572500
A18: =A29 -> 3 | B18: Total O&M costs (Tsh) | C18: 5454326443
B19: O&M costs/m3 | C19: =C18/C17 -> 636.2585527
A21: =A29 -> 3 | B21: Total costs, including depreciation & amortization | C21: 8037638554
A23: =A30 -> 4 | B23: Total cost per unit delivered (US$/m3) | C23: =Assumptions!N33 -> 0.81
B26: Notes
A27: 1 | B27: MCA-T costs from Q20 MCA-T Detailed Financial Plan, GoT costs from Q22 GoT Detailed Financial Plan
A28: 2 | B28: EWURA (2013). Water Utilities Performance Review Report 2012/13. Table A2.2, p. 109.
A29: 3 | B29: EWURA (2013). Water Utilities Performance Review Report 2012/13. Table A2.15, p. 123. Comparison of these numbers with other cost per unit estimates for Tanzania, specifically Shkaratan (2012), suggest that these estimates include only a portion of the true depreciation and amortization costs.
A30: 4 | B30: Shkaratan (2012). Tanzania's Infrastructure: A Continental Perspective. World Bank Working Paper WPS5962. Table 7b.

Sheet Savings
B1: Tanzania: Morogoro Water Supply Activity | J1: Last updated: 2/8/2016
B2: User Cost Savings Benefits
E3: =IF('ERR & Sensitivity Analysis'!$I$10="N","Note: Current calculations are based on user input and are not the original MCC estimates.",IF('ERR & Sensitivity Analysis'!$I$13="N","Note: Current calculations are based on user input and are not the original MCC estimates.","")) -> 
E5: All figures in 2014 US$ unless specified | F5: 2008 | G5: 2009 | H5: 2010 | I5: 2011 | J5: 2012 | K5: 2013 | L5: 2014 | M5: 2015 | N5: 2016 | O5: 2017 | P5: 2018 | Q5: 2019 | R5: 2020 | S5: 2021 | T5: 2022 | U5: 2023 | V5: 2024 | W5: 2025 | X5: 2026 | Y5: 2027 | Z5: 2028
E6: Year | F6: 0 | G6: 1 | H6: 2 | I6: 3 | J6: 4 | K6: 5 | L6: 6 | M6: 7 | N6: 8 | O6: 9 | P6: 10 | Q6: 11 | R6: 12 | S6: 13 | T6: 14 | U6: 15 | V6: 16 | W6: 17 | X6: 18 | Y6: 19 | Z6: 20
E7: Benefits? | F7: 0 | G7: 0 | H7: 0 | I7: 0 | J7: 0 | K7: 0 | L7: 1 | M7: 1 | N7: 1 | O7: 1 | P7: 1 | Q7: 1 | R7: 1 | S7: 1 | T7: 1 | U7: 1 | V7: 1 | W7: 1 | X7: 1 | Y7: 1 | Z7: 1
C8: Affected Population | F8: =Beneficiaries!L13 -> 249492.4245 | G8: =Beneficiaries!M13 -> 257768.1279 | H8: =Beneficiaries!N13 -> 266318.3376 | I8: =Beneficiaries!O13 -> 275152.1592 | J8: =Beneficiaries!P13 -> 284279 | K8: =Beneficiaries!Q13 -> 293708.5796 | L8: =Beneficiaries!R13 -> 303450.9398 | M8: =Beneficiaries!S13 -> 313516.4557 | N8: =Beneficiaries!T13 -> 323915.8463 | O8: =Beneficiaries!U13 -> 334660.1864 | P8: =Beneficiaries!V13 -> 345760.9179 | Q8: =Beneficiaries!W13 -> 357229.8625 | R8: =Beneficiaries!X13 -> 369079.2337 | S8: =Beneficiaries!Y13 -> 381321.6505 | T8: =Beneficiaries!Z13 -> 393970.1502 | U8: =Beneficiaries!AA13 -> 407038.2027 | V8: =Beneficiaries!AB13 -> 420539.7245 | W8: =Beneficiaries!AC13 -> 434489.094 | X8: =Beneficiaries!AD13 -> 448901.1662 | Y8: =Beneficiaries!AE13 -> 463791.2892 | Z8: =Beneficiaries!AF13 -> 479175.3199
C9: Affected Households | F9: =Beneficiaries!L22 -> 58021.49408 | G9: =Beneficiaries!M22 -> 59946.07625 | H9: =Beneficiaries!N22 -> 61934.49712 | I9: =Beneficiaries!O22 -> 63988.87423 | J9: =Beneficiaries!P22 -> 66111.39535 | K9: =Beneficiaries!Q22 -> 68304.32083 | L9: =Beneficiaries!R22 -> 70569.986 | M9: =Beneficiaries!S22 -> 72910.80365 | N9: =Beneficiaries!T22 -> 75329.26658 | O9: =Beneficiaries!U22 -> 77827.95032 | P9: =Beneficiaries!V22 -> 80409.51579 | Q9: =Beneficiaries!W22 -> 83076.7122 | R9: =Beneficiaries!X22 -> 85832.37994 | S9: =Beneficiaries!Y22 -> 88679.45361 | T9: =Beneficiaries!Z22 -> 91620.96517 | U9: =Beneficiaries!AA22 -> 94660.04714 | V9: =Beneficiaries!AB22 -> 97799.93594 | W9: =Beneficiaries!AC22 -> 101043.9753 | X9: =Beneficiaries!AD22 -> 104395.6201 | Y9: =Beneficiaries!AE22 -> 107858.4394 | Z9: =Beneficiaries!AF22 -> 111436.1209
C11: Without Project
C13: Water produced by MORUWASA (m3) | G13: =Commercial!F9 -> 5361120 | H13: =Commercial!G9 -> 5361120 | I13: =Commercial!H9 -> 5361120 | J13: =Commercial!I9 -> 5361120 | K13: =Commercial!J9 -> 5361120 | L13: =Commercial!K9 -> 5361120 | M13: =Commercial!L9 -> 5361120 | N13: =Commercial!M9 -> 5361120 | O13: =Commercial!N9 -> 5361120 | P13: =Commercial!O9 -> 5361120 | Q13: =Commercial!P9 -> 5361120 | R13: =Commercial!Q9 -> 5361120 | S13: =Commercial!R9 -> 5361120 | T13: =Commercial!S9 -> 5361120 | U13: =Commercial!T9 -> 5361120 | V13: =Commercial!U9 -> 5361120 | W13: =Commercial!V9 -> 5361120 | X13: =Commercial!W9 -> 5361120 | Y13: =Commercial!X9 -> 5361120 | Z13: =Commercial!Y9 -> 5361120
D14: Capacity? | G14: =IF(G20>G13,"Yes","No") -> No | H14: Yes | I14: Yes | J14: Yes | K14: Yes | L14: Yes | M14: Yes | N14: Yes | O14: Yes | P14: Yes | Q14: Yes | R14: Yes | S14: Yes | T14: Yes | U14: Yes | V14: Yes | W14: Yes | X14: Yes | Y14: Yes | Z14: Yes
C16: Households using MORUWASA sources | F16: % of households | G16: =SUM(G17:G18) -> 54550.92939 | H16: =SUM(H17:H18) -> 56360.39238 | I16: 58229.87555 | J16: 60161.36977 | K16: 62156.93196 | L16: 64218.68726 | M16: 66348.83132 | N16: 68549.63259 | O16: 70823.43479 | P16: 73172.65937 | Q16: 75599.8081 | R16: 78107.46574 | S16: 80698.30279 | T16: 83375.07831 | U16: 86140.6429 | V16: 88997.9417 | W16: 91950.01756 | X16: 95000.01425 | Y16: 98151.17981 | Z16: 101406.87
D17: Own tap | F17: =Assumptions!C9 -> 0.52 | G17: =$F17*G$9 -> 31171.95965 | H17: =$F17*H$9 -> 32205.9385 | I17: 33274.2146 | J17: 34377.92558 | K17: 35518.24683 | L17: 36696.39272 | M17: 37913.6179 | N17: 39171.21862 | O17: 40470.53417 | P17: 41812.94821 | Q17: 43199.89034 | R17: 44632.83757 | S17: 46113.31588 | T17: 47642.90189 | U17: 49223.22451 | V17: 50855.96669 | W17: 52542.86718 | X17: 54285.72243 | Y17: 56086.38846 | Z17: 57946.78288
D18: Other piped | F18: =Assumptions!C10 -> 0.39 | G18: =$F18*G$9 -> 23378.96974 | H18: 24154.45388 | I18: 24955.66095 | J18: 25783.44419 | K18: 26638.68512 | L18: 27522.29454 | M18: 28435.21342 | N18: 29378.41397 | O18: 30352.90062 | P18: 31359.71116 | Q18: 32399.91776 | R18: 33474.62818 | S18: 34584.98691 | T18: 35732.17642 | U18: 36917.41838 | V18: 38141.97502 | W18: 39407.15038 | X18: 40714.29182 | Y18: 42064.79135 | Z18: 43460.08716
C20: Volume of household water demanded, MORUWASA (m3) | F20: Liters/capita/day | G20: =SUM(G21:G22) -> 5265487.546 | H20: =SUM(H21:H22) -> 5440144.604 | I20: 5620595.065 | J20: 5807031.096 | K20: 5999651.239 | L20: 6198660.624 | M20: 6404271.181 | N20: 6616701.874 | O20: 6836178.926 | P20: 7062936.066 | Q20: 7297214.777 | R20: 7539264.55 | S20: 7789343.153 | T20: 8047716.902 | U20: 8314660.95 | V20: 8590459.574 | W20: 8875406.483 | X20: 9169805.125 | Y20: 9473969.018 | Z20: 9788222.075
D21: Own tap | F21: =Assumptions!D40 -> 103.5 | G21: =$F21*$F17*G$8*365/1000 -> 5063674.435 | H21: 5231637.32 | I21: 5405171.561 | J21: 5584461.96 | K21: 5769699.45 | L21: 5961081.297 | M21: 6158811.31 | N21: 6363100.06 | O21: 6574165.099 | P21: 6792231.2 | Q21: 7017530.587 | R21: 7250303.191 | S21: 7490796.9 | T21: 7739267.822 | U21: 7995980.565 | V21: 8261208.511 | W21: 8535234.109 | X21: 8818349.18 | Y21: 9110855.223 | Z21: 9413063.737
D22: Other piped | F22: =Assumptions!D41 -> 5.5 | G22: =$F22*$F18*G$8*365/1000 -> 201813.1115 | H22: 208507.2845 | I22: 215423.5042 | J22: 222569.1361 | K22: 229951.7897 | L22: 237579.3271 | M22: 245459.8711 | N22: 253601.814 | O22: 262013.8264 | P22: 270704.8666 | Q22: 279684.1901 | R22: 288961.3591 | S22: 298546.2532 | T22: 308449.0799 | U22: 318680.3848 | V22: 329251.0638 | W22: 340172.3739 | X22: 351455.9456 | Y22: 363113.7951 | Z22: 375158.3374
C24: Volume of household water consumed MORUWASA (m3) | F24: % of consumption | G24: =IF(G$14="No",G20,G13) -> 5265487.546 | H24: 5361120 | I24: 5361120 | J24: 5361120 | K24: 5361120 | L24: 5361120 | M24: 5361120 | N24: 5361120 | O24: 5361120 | P24: 5361120 | Q24: 5361120 | R24: 5361120 | S24: 5361120 | T24: 5361120 | U24: 5361120 | V24: 5361120 | W24: 5361120 | X24: 5361120 | Y24: 5361120 | Z24: 5361120
D25: Own tap | F25: =F21/SUM(F21:F22) -> 0.9495412844 | G25: =IF(G$14="No",G21,G$13*$F25) -> 5063674.435 | H25: 5090604.771 | I25: 5090604.771 | J25: 5090604.771 | K25: 5090604.771 | L25: 5090604.771 | M25: 5090604.771 | N25: 5090604.771 | O25: 5090604.771 | P25: 5090604.771 | Q25: 5090604.771 | R25: 5090604.771 | S25: 5090604.771 | T25: 5090604.771 | U25: 5090604.771 | V25: 5090604.771 | W25: 5090604.771 | X25: 5090604.771 | Y25: 5090604.771 | Z25: 5090604.771
D26: Other piped | F26: =F22/SUM(F21:F22) -> 0.0504587156 | G26: =IF(G$14="No",G22,G$13*$F26) -> 201813.1115 | H26: 270515.2294 | I26: 270515.2294 | J26: 270515.2294 | K26: 270515.2294 | L26: 270515.2294 | M26: 270515.2294 | N26: 270515.2294 | O26: 270515.2294 | P26: 270515.2294 | Q26: 270515.2294 | R26: 270515.2294 | S26: 270515.2294 | T26: 270515.2294 | U26: 270515.2294 | V26: 270515.2294 | W26: 270515.2294 | X26: 270515.2294 | Y26: 270515.2294 | Z26: 270515.2294
C28: Total household expenditures on water, MORUWASA sources (US$) | F28: Cost/m3 | G28: =SUM(G29:G30) -> 4439914.342 | H28: 4587187.006 | I28: 4739344.727 | J28: 4896549.544 | K28: 5058968.87 | L28: 5226775.671 | M28: 5400148.65 | N28: 5579272.439 | O28: 5764337.792 | P28: 5955541.792 | Q28: 6153088.059 | R28: 6357186.967 | S28: 6568055.868 | T28: 6785919.325 | U28: 7011009.346 | V28: 7243565.64 | W28: 7483835.862 | X28: 7732075.887 | Y28: 7988550.072 | Z28: 8253531.546
D29: Own tap | F29: =Assumptions!H9*1000/Tsh_USD -> 0.7509676814 | G29: =G21*$F29 -> 3802655.85 | H29: 3928790.548 | I29: 4059109.154 | J29: 4193750.45 | K29: 4332857.818 | L29: 4476579.4 | M29: 4625068.25 | N29: 4778482.498 | O29: 4936985.522 | P29: 5100746.116 | Q29: 5269938.674 | R29: 5444743.377 | S29: 5625346.38 | T29: 5811940.012 | U29: 6004722.986 | V29: 6203900.601 | W29: 6409684.969 | X29: 6622295.237 | Y29: 6841957.822 | Z29: 7068906.65
D30: Other piped | F30: =Assumptions!H10*1000/Tsh_USD -> 3.157666453 | G30: =G22*$F30 -> 637258.4921 | H30: 658396.4575 | I30: 680235.5725 | J30: 702799.0945 | K30: 726111.0521 | L30: 750196.271 | M30: 775080.4004 | N30: 800789.9404 | O30: 827352.2699 | P30: 854795.6761 | Q30: 883149.3845 | R30: 912443.5898 | S30: 942709.4886 | T30: 973979.312 | U30: 1006286.361 | V30: 1039665.039 | W30: 1074150.893 | X30: 1109780.649 | Y30: 1146592.249 | Z30: 1184624.896
C32: With Project
C33: Water produced by MORUWASA (m3) | F33: =IF(F7=1,cap_wp*365,F13) -> 0 | G33: =IF(G7=1,cap_wp*365*(1-(nrw*techloss)),G13) -> 5361120 | H33: 5361120 | I33: 5361120 | J33: 5361120 | K33: 5361120 | L33: 9828720 | M33: 9828720 | N33: 9828720 | O33: 9828720 | P33: 9828720 | Q33: 9828720 | R33: 9828720 | S33: 9828720 | T33: 9828720 | U33: 9828720 | V33: 9828720 | W33: 9828720 | X33: 9828720 | Y33: 9828720 | Z33: 9828720
D34: Capacity? | G34: =IF(G40>G33,"Yes","No") -> No | H34: =IF(H40>H33,"Yes","No") -> Yes | I34: Yes | J34: Yes | K34: Yes | L34: No | M34: No | N34: No | O34: No | P34: No | Q34: No | R34: No | S34: No | T34: No | U34: No | V34: No | W34: No | X34: No | Y34: No | Z34: No
C36: Households using MORUWASA sources | F36: % of households | G36: =SUM(G37:G38) -> 54550.92939 | H36: 56360.39238 | I36: 58229.87555 | J36: 60161.36977 | K36: 62156.93196 | L36: 64218.68726 | M36: 66348.83132 | N36: 68549.63259 | O36: 70823.43479 | P36: 73172.65937 | Q36: 75599.8081 | R36: 78107.46574 | S36: 80698.30279 | T36: 83375.07831 | U36: 86140.6429 | V36: 88997.9417 | W36: 91950.01756 | X36: 95000.01425 | Y36: 98151.17981 | Z36: 101406.87
D37: Own tap | F37: =Assumptions!C40 -> 0.52 | G37: =IF(G$7=0,G17,$F37*G$9) -> 31171.95965 | H37: 32205.9385 | I37: 33274.2146 | J37: 34377.92558 | K37: 35518.24683 | L37: 36696.39272 | M37: 37913.6179 | N37: 39171.21862 | O37: 40470.53417 | P37: 41812.94821 | Q37: 43199.89034 | R37: 44632.83757 | S37: 46113.31588 | T37: 47642.90189 | U37: 49223.22451 | V37: 50855.96669 | W37: 52542.86718 | X37: 54285.72243 | Y37: 56086.38846 | Z37: 57946.78288
D38: Other piped | F38: =Assumptions!C41 -> 0.39 | G38: =IF(G$7=0,G18,$F38*G$9) -> 23378.96974 | H38: 24154.45388 | I38: 24955.66095 | J38: 25783.44419 | K38: 26638.68512 | L38: 27522.29454 | M38: 28435.21342 | N38: 29378.41397 | O38: 30352.90062 | P38: 31359.71116 | Q38: 32399.91776 | R38: 33474.62818 | S38: 34584.98691 | T38: 35732.17642 | U38: 36917.41838 | V38: 38141.97502 | W38: 39407.15038 | X38: 40714.29182 | Y38: 42064.79135 | Z38: 43460.08716
C40: Volume of household water demanded, MORUWASA (m3) | F40: Liters/capita/day | G40: =SUM(G41:G42) -> 5265487.546 | H40: =SUM(H41:H42) -> 5440144.604 | I40: 5620595.065 | J40: 5807031.096 | K40: 5999651.239 | L40: 6198660.624 | M40: 6404271.181 | N40: 6616701.874 | O40: 6836178.926 | P40: 7062936.066 | Q40: 7297214.777 | R40: 7539264.55 | S40: 7789343.153 | T40: 8047716.902 | U40: 8314660.95 | V40: 8590459.574 | W40: 8875406.483 | X40: 9169805.125 | Y40: 9473969.018 | Z40: 9788222.075
D41: Own tap | F41: =Assumptions!D40 -> 103.5 | G41: =$F41*$F37*G$8*365/1000 -> 5063674.435 | H41: =$F41*$F37*H$8*365/1000 -> 5231637.32 | I41: 5405171.561 | J41: 5584461.96 | K41: 5769699.45 | L41: 5961081.297 | M41: 6158811.31 | N41: 6363100.06 | O41: 6574165.099 | P41: 6792231.2 | Q41: 7017530.587 | R41: 7250303.191 | S41: 7490796.9 | T41: 7739267.822 | U41: 7995980.565 | V41: 8261208.511 | W41: 8535234.109 | X41: 8818349.18 | Y41: 9110855.223 | Z41: 9413063.737
D42: Other piped | F42: =Assumptions!D41 -> 5.5 | G42: =$F42*$F38*G$8*365/1000 -> 201813.1115 | H42: =$F42*$F38*H$8*365/1000 -> 208507.2845 | I42: 215423.5042 | J42: 222569.1361 | K42: 229951.7897 | L42: 237579.3271 | M42: 245459.8711 | N42: 253601.814 | O42: 262013.8264 | P42: 270704.8666 | Q42: 279684.1901 | R42: 288961.3591 | S42: 298546.2532 | T42: 308449.0799 | U42: 318680.3848 | V42: 329251.0638 | W42: 340172.3739 | X42: 351455.9456 | Y42: 363113.7951 | Z42: 375158.3374
C44: Volume of household water consumed, MORUWASA (m3) | F44: % of consumption | G44: =IF(G$34="No",G40,G33) -> 5265487.546 | H44: =IF(H$34="No",H40,H33) -> 5361120 | I44: 5361120 | J44: 5361120 | K44: 5361120 | L44: 6198660.624 | M44: 6404271.181 | N44: 6616701.874 | O44: 6836178.926 | P44: 7062936.066 | Q44: 7297214.777 | R44: 7539264.55 | S44: 7789343.153 | T44: 8047716.902 | U44: 8314660.95 | V44: 8590459.574 | W44: 8875406.483 | X44: 9169805.125 | Y44: 9473969.018 | Z44: 9788222.075
D45: Own tap | F45: =F41/SUM(F41:F42) -> 0.9495412844 | G45: =IF(G$34="No",G41,G$33*$F45) -> 5063674.435 | H45: =IF(H$34="No",H41,H$33*$F45) -> 5090604.771 | I45: 5090604.771 | J45: 5090604.771 | K45: 5090604.771 | L45: 5961081.297 | M45: 6158811.31 | N45: 6363100.06 | O45: 6574165.099 | P45: 6792231.2 | Q45: 7017530.587 | R45: 7250303.191 | S45: 7490796.9 | T45: 7739267.822 | U45: 7995980.565 | V45: 8261208.511 | W45: 8535234.109 | X45: 8818349.18 | Y45: 9110855.223 | Z45: 9413063.737
D46: Other piped | F46: =F42/SUM(F41:F42) -> 0.0504587156 | G46: =IF(G$34="No",G42,G$33*$F46) -> 201813.1115 | H46: =IF(H$34="No",H42,H$33*$F46) -> 270515.2294 | I46: 270515.2294 | J46: 270515.2294 | K46: 270515.2294 | L46: 237579.3271 | M46: 245459.8711 | N46: 253601.814 | O46: 262013.8264 | P46: 270704.8666 | Q46: 279684.1901 | R46: 288961.3591 | S46: 298546.2532 | T46: 308449.0799 | U46: 318680.3848 | V46: 329251.0638 | W46: 340172.3739 | X46: 351455.9456 | Y46: 363113.7951 | Z46: 375158.3374
C48: Total household expenditures on water, MORUWASA sources (US$) | F48: Cost/m3 | G48: =SUM(G49:G50) -> 4439914.342 | H48: =SUM(H49:H50) -> 4587187.006 | I48: 4739344.727 | J48: 4896549.544 | K48: 5058968.87 | L48: 2878634.965 | M48: 2974119.744 | N48: 3072771.768 | O48: 3174696.095 | P48: 3280001.269 | Q48: 3388799.432 | R48: 3501206.448 | S48: 3617342.021 | T48: 3737329.831 | U48: 3861297.655 | V48: 3989377.511 | W48: 4121705.797 | X48: 4258423.433 | Y48: 4399676.014 | Z48: 4545613.967
D49: Own tap | F49: =Assumptions!H40*1000/Tsh_USD -> 0.4643962848 | G49: =IF(G$7=0,G29,(G$7*G45*$F49)+((1-G$7)*G29)) -> 3802655.85 | H49: 3928790.548 | I49: 4059109.154 | J49: 4193750.45 | K49: 4332857.818 | L49: 2768304.008 | M49: 2860129.091 | N49: 2955000.028 | O49: 3053017.848 | P49: 3154286.935 | Q49: 3258915.133 | R49: 3367013.866 | S49: 3478698.251 | T49: 3594087.224 | U49: 3713303.668 | V49: 3836474.54 | W49: 3963731.01 | X49: 4095208.597 | Y49: 4231047.317 | Z49: 4371391.828
D50: Other piped | F50: =Assumptions!H41*1000/Tsh_USD -> 0.4643962848 | G50: =IF(G$7=0,G30,(G$7*G46*$F50)+((1-G$7)*G30)) -> 637258.4921 | H50: 658396.4575 | I50: 680235.5725 | J50: 702799.0945 | K50: 726111.0521 | L50: 110330.9568 | M50: 113990.6522 | N50: 117771.7402 | O50: 121678.2476 | P50: 125714.3344 | Q50: 129884.2988 | R50: 134192.5816 | S50: 138643.7709 | T50: 143242.6068 | U50: 147993.9868 | V50: 152902.9708 | W50: 157974.7866 | X50: 163214.8354 | Y50: 168628.6974 | Z50: 174222.1381
C52: Total change in water expenditures (US$) | G52: =G48-G28 -> 0 | H52: =H48-H28 -> 0 | I52: =I48-I28 -> 0 | J52: =J48-J28 -> 0 | K52: =K48-K28 -> 0 | L52: =L28-L48 -> 2348140.707 | M52: 2426028.907 | N52: 2506500.671 | O52: 2589641.696 | P52: 2675540.523 | Q52: 2764288.627 | R52: 2855980.519 | S52: 2950713.847 | T52: 3048589.494 | U52: 3149711.691 | V52: 3254188.128 | W52: 3362130.065 | X52: 3473652.454 | Y52: 3588874.057 | Z52: 3707917.58

Sheet Health
B1: Tanzania: Morogoro Water Supply Activity | J1: Last updated: 2/8/2016
B2: Health Benefits
E3: =IF('ERR & Sensitivity Analysis'!$I$10="N","Note: Current calculations are based on user input and are not the original MCC estimates.",IF('ERR & Sensitivity Analysis'!$I$13="N","Note: Current calculations are based on user input and are not the original MCC estimates.","")) -> 
E5: All figures in 2014 US$ unless specified | F5: 2008 | G5: 2009 | H5: 2010 | I5: 2011 | J5: 2012 | K5: 2013 | L5: 2014 | M5: 2015 | N5: 2016 | O5: 2017 | P5: 2018 | Q5: 2019 | R5: 2020 | S5: 2021 | T5: 2022 | U5: 2023 | V5: 2024 | W5: 2025 | X5: 2026 | Y5: 2027 | Z5: 2028
E6: Year | F6: 0 | G6: 1 | H6: 2 | I6: 3 | J6: 4 | K6: 5 | L6: 6 | M6: 7 | N6: 8 | O6: 9 | P6: 10 | Q6: 11 | R6: 12 | S6: 13 | T6: 14 | U6: 15 | V6: 16 | W6: 17 | X6: 18 | Y6: 19 | Z6: 20
E7: Benefits? | F7: 0 | G7: 0 | H7: 0 | I7: 0 | J7: 0 | K7: 0 | L7: =IF(1/Assumptions!$N$53+K7<=1, 1/Assumptions!$N$53+K7, 1) -> 0.3333333333 | M7: =IF(1/Assumptions!$N$53+L7<=1, 1/Assumptions!$N$53+L7, 1) -> 0.6666666667 | N7: =IF(1/Assumptions!$N$53+M7<=1, 1/Assumptions!$N$53+M7, 1) -> 1 | O7: =IF(1/Assumptions!$N$53+N7<=1, 1/Assumptions!$N$53+N7, 1) -> 1 | P7: =IF(1/Assumptions!$N$53+O7<=1, 1/Assumptions!$N$53+O7, 1) -> 1 | Q7: =IF(1/Assumptions!$N$53+P7<=1, 1/Assumptions!$N$53+P7, 1) -> 1 | R7: =IF(1/Assumptions!$N$53+Q7<=1, 1/Assumptions!$N$53+Q7, 1) -> 1 | S7: =IF(1/Assumptions!$N$53+R7<=1, 1/Assumptions!$N$53+R7, 1) -> 1 | T7: =IF(1/Assumptions!$N$53+S7<=1, 1/Assumptions!$N$53+S7, 1) -> 1 | U7: =IF(1/Assumptions!$N$53+T7<=1, 1/Assumptions!$N$53+T7, 1) -> 1 | V7: =IF(1/Assumptions!$N$53+U7<=1, 1/Assumptions!$N$53+U7, 1) -> 1 | W7: =IF(1/Assumptions!$N$53+V7<=1, 1/Assumptions!$N$53+V7, 1) -> 1 | X7: =IF(1/Assumptions!$N$53+W7<=1, 1/Assumptions!$N$53+W7, 1) -> 1 | Y7: =IF(1/Assumptions!$N$53+X7<=1, 1/Assumptions!$N$53+X7, 1) -> 1 | Z7: =IF(1/Assumptions!$N$53+Y7<=1, 1/Assumptions!$N$53+Y7, 1) -> 1
C8: Affected Population | F8: =Beneficiaries!L13 -> 249492.4245 | G8: =Beneficiaries!M13 -> 257768.1279 | H8: =Beneficiaries!N13 -> 266318.3376 | I8: =Beneficiaries!O13 -> 275152.1592 | J8: =Beneficiaries!P13 -> 284279 | K8: =Beneficiaries!Q13 -> 293708.5796 | L8: =Beneficiaries!R13 -> 303450.9398 | M8: =Beneficiaries!S13 -> 313516.4557 | N8: =Beneficiaries!T13 -> 323915.8463 | O8: =Beneficiaries!U13 -> 334660.1864 | P8: =Beneficiaries!V13 -> 345760.9179 | Q8: =Beneficiaries!W13 -> 357229.8625 | R8: =Beneficiaries!X13 -> 369079.2337 | S8: =Beneficiaries!Y13 -> 381321.6505 | T8: =Beneficiaries!Z13 -> 393970.1502 | U8: =Beneficiaries!AA13 -> 407038.2027 | V8: =Beneficiaries!AB13 -> 420539.7245 | W8: =Beneficiaries!AC13 -> 434489.094 | X8: =Beneficiaries!AD13 -> 448901.1662 | Y8: =Beneficiaries!AE13 -> 463791.2892 | Z8: =Beneficiaries!AF13 -> 479175.3199
D9: Age < 5 | F9: =Beneficiaries!L14 -> 36425.89398 | G9: =Beneficiaries!M14 -> 37634.14667 | H9: =Beneficiaries!N14 -> 38882.47729 | I9: =Beneficiaries!O14 -> 40172.21524 | J9: =Beneficiaries!P14 -> 41504.734 | K9: =Beneficiaries!Q14 -> 42881.45262 | L9: =Beneficiaries!R14 -> 44303.83721 | M9: =Beneficiaries!S14 -> 45773.40253 | N9: =Beneficiaries!T14 -> 47291.71356 | O9: =Beneficiaries!U14 -> 48860.38721 | P9: =Beneficiaries!V14 -> 50481.09401 | Q9: =Beneficiaries!W14 -> 52155.55992 | R9: =Beneficiaries!X14 -> 53885.56813 | S9: =Beneficiaries!Y14 -> 55672.96098 | T9: =Beneficiaries!Z14 -> 57519.64194 | U9: =Beneficiaries!AA14 -> 59427.57759 | V9: =Beneficiaries!AB14 -> 61398.79978 | W9: =Beneficiaries!AC14 -> 63435.40772 | X9: =Beneficiaries!AD14 -> 65539.57027 | Y9: =Beneficiaries!AE14 -> 67713.52822 | Z9: =Beneficiaries!AF14 -> 69959.59671
D10: Age 5-18 | F10: =Beneficiaries!L15 -> 66614.47735 | G10: =Beneficiaries!M15 -> 68824.09015 | H10: =Beneficiaries!N15 -> 71106.99615 | I10: =Beneficiaries!O15 -> 73465.6265 | J10: =Beneficiaries!P15 -> 75902.493 | K10: =Beneficiaries!Q15 -> 78420.19075 | L10: =Beneficiaries!R15 -> 81021.40093 | M10: =Beneficiaries!S15 -> 83708.89367 | N10: =Beneficiaries!T15 -> 86485.53096 | O10: =Beneficiaries!U15 -> 89354.26976 | P10: =Beneficiaries!V15 -> 92318.16508 | Q10: =Beneficiaries!W15 -> 95380.37328 | R10: =Beneficiaries!X15 -> 98544.15541 | S10: =Beneficiaries!Y15 -> 101812.8807 | T10: =Beneficiaries!Z15 -> 105190.0301 | U10: =Beneficiaries!AA15 -> 108679.2001 | V10: =Beneficiaries!AB15 -> 112284.1064 | W10: =Beneficiaries!AC15 -> 116008.5881 | X10: =Beneficiaries!AD15 -> 119856.6114 | Y10: =Beneficiaries!AE15 -> 123832.2742 | Z10: =Beneficiaries!AF15 -> 127939.8104
D11: Age > 18 | F11: =Beneficiaries!L16 -> 146452.0532 | G11: =Beneficiaries!M16 -> 151309.8911 | H11: =Beneficiaries!N16 -> 156328.8642 | I11: =Beneficiaries!O16 -> 161514.3174 | J11: =Beneficiaries!P16 -> 166871.773 | K11: =Beneficiaries!Q16 -> 172406.9362 | L11: =Beneficiaries!R16 -> 178125.7017 | M11: =Beneficiaries!S16 -> 184034.1595 | N11: =Beneficiaries!T16 -> 190138.6018 | O11: =Beneficiaries!U16 -> 196445.5294 | P11: =Beneficiaries!V16 -> 202961.6588 | Q11: =Beneficiaries!W16 -> 209693.9293 | R11: =Beneficiaries!X16 -> 216649.5102 | S11: =Beneficiaries!Y16 -> 223835.8089 | T11: =Beneficiaries!Z16 -> 231260.4782 | U11: =Beneficiaries!AA16 -> 238931.425 | V11: =Beneficiaries!AB16 -> 246856.8183 | W11: =Beneficiaries!AC16 -> 255045.0982 | X11: =Beneficiaries!AD16 -> 263504.9846 | Y11: =Beneficiaries!AE16 -> 272245.4868 | Z11: =Beneficiaries!AF16 -> 281275.9128
C12: Affected Households | F12: =Beneficiaries!L22 -> 58021.49408 | G12: =Beneficiaries!M22 -> 59946.07625 | H12: =Beneficiaries!N22 -> 61934.49712 | I12: =Beneficiaries!O22 -> 63988.87423 | J12: =Beneficiaries!P22 -> 66111.39535 | K12: =Beneficiaries!Q22 -> 68304.32083 | L12: =Beneficiaries!R22 -> 70569.986 | M12: =Beneficiaries!S22 -> 72910.80365 | N12: =Beneficiaries!T22 -> 75329.26658 | O12: =Beneficiaries!U22 -> 77827.95032 | P12: =Beneficiaries!V22 -> 80409.51579 | Q12: =Beneficiaries!W22 -> 83076.7122 | R12: =Beneficiaries!X22 -> 85832.37994 | S12: =Beneficiaries!Y22 -> 88679.45361 | T12: =Beneficiaries!Z22 -> 91620.96517 | U12: =Beneficiaries!AA22 -> 94660.04714 | V12: =Beneficiaries!AB22 -> 97799.93594 | W12: =Beneficiaries!AC22 -> 101043.9753 | X12: =Beneficiaries!AD22 -> 104395.6201 | Y12: =Beneficiaries!AE22 -> 107858.4394 | Z12: =Beneficiaries!AF22 -> 111436.1209
C14: Without Project
C16: Cases of diarrheal disease | F16: =SUM(F17:F19) -> 15388.69275 | G16: =SUM(G17:G19) -> 15899.13813 | H16: 16426.51506 | I16: 16971.38518 | J16: 17534.32872 | K16: 18115.94519 | L16: 18716.85397 | M16: 19337.69499 | N16: 19979.1294 | O16: 20641.8403 | P16: 21326.53342 | Q16: 22033.93792 | R16: 22764.80714 | S16: 23519.91941 | T16: 24300.07887 | U16: 25106.11634 | V16: 25938.89021 | W16: 26799.28732 | X16: 27688.22393 | Y16: 28606.64672 | Z16: 29555.53373
D17: Age < 5 | F17: =F9*diarU5 -> 4735.366218 | G17: =G9*diarU5 -> 4892.439067 | H17: 5054.722048 | I17: 5222.387981 | J17: 5395.61542 | K17: 5574.58884 | L17: 5759.498838 | M17: 5950.542329 | N17: 6147.922763 | O17: 6351.850337 | P17: 6562.542222 | Q17: 6780.22279 | R17: 7005.123856 | S17: 7237.484927 | T17: 7477.553452 | U17: 7725.585087 | V17: 7981.843972 | W17: 8246.603004 | X17: 8520.144135 | Y17: 8802.758669 | Z17: 9094.747572
D18: Age 5-18 | F18: =F10*diar518 -> 3330.723868 | G18: 3441.204507 | H18: 3555.349807 | I18: 3673.281325 | J18: 3795.12465 | K18: 3921.009537 | L18: 4051.070046 | M18: 4185.444683 | N18: 4324.276548 | O18: 4467.713488 | P18: 4615.908254 | Q18: 4769.018664 | R18: 4927.20777 | S18: 5090.644035 | T18: 5259.501506 | U18: 5433.960006 | V18: 5614.205322 | W18: 5800.429405 | X18: 5992.830569 | Y18: 6191.613711 | Z18: 6396.990521
D19: Age > 18 | F19: =F11*diar18 -> 7322.60266 | G19: 7565.494553 | H19: 7816.443209 | I19: 8075.715872 | J19: 8343.58865 | K19: 8620.346811 | L19: 8906.285083 | M19: 9201.707974 | N19: 9506.930089 | O19: 9822.27647 | P19: 10148.08294 | Q19: 10484.69646 | R19: 10832.47551 | S19: 11191.79044 | T19: 11563.02391 | U19: 11946.57125 | V19: 12342.84091 | W19: 12752.25491 | X19: 13175.24923 | Y19: 13612.27434 | Z19: 14063.79564
C21: Treatment costs | F21: =F16*cost_treat/Tsh_USD -> 7127.394535 | G21: =G16*cost_treat/Tsh_USD -> 7363.811343 | H21: 7608.070135 | I21: 7860.43103 | J21: 8121.162776 | K21: 8390.543035 | L21: 8668.85868 | M21: 8956.406099 | N21: 9253.491512 | O21: 9560.431295 | P21: 9877.552319 | Q21: 10205.1923 | R21: 10543.70015 | S21: 10893.43636 | T21: 11254.77337 | U21: 11628.09599 | V21: 12013.80178 | W21: 12412.30149 | X21: 12824.01951 | Y21: 13249.39427 | Z21: 13688.87878
C23: Days spent treating for self or others | F23: =F16*sickdays -> 5201.378148 | G23: 5373.908687 | H23: 5552.162092 | I23: 5736.32819 | J23: 5926.603107 | K23: 6123.189474 | L23: 6326.296641 | M23: 6536.140905 | N23: 6752.945737 | O23: 6976.94202 | P23: 7208.368295 | Q23: 7447.471016 | R23: 7694.504812 | S23: 7949.732759 | T23: 8213.426657 | U23: 8485.867324 | V23: 8767.344891 | W23: 9058.159113 | X23: 9358.619689 | Y23: 9669.046591 | Z23: 9989.770402
C24: Opportunity cost of treatment | F24: =F23*wage/Tsh_USD*employ -> 42514.80693 | G24: 43925.02982 | H24: 45382.03004 | I24: 46887.35918 | J24: 48442.62033 | K24: 50049.46974 | L24: 51709.6186 | M24: 53424.83487 | N24: 55196.94512 | O24: 57027.83656 | P24: 58919.45896 | Q24: 60873.82677 | R24: 62893.02127 | S24: 64979.19277 | T24: 67134.56292 | U24: 69361.42703 | V24: 71662.15658 | W24: 74039.2017 | X24: 76495.09378 | Y24: 79032.44819 | Z24: 81653.96704
C26: Children stunted as a result of diarrhea | F26: =F17*stunt -> 2976.229639 | G26: =G17*stunt -> 3074.951649 | H26: 3176.948283 | I26: 3282.328162 | J26: 3391.203509 | K26: 3503.690268 | L26: 3619.90823 | M26: 3739.981161 | N26: 3864.03693 | O26: 3992.207649 | P26: 4124.629811 | Q26: 4261.444437 | R26: 4402.797225 | S26: 4548.838709 | T26: 4699.724411 | U26: 4855.615016 | V26: 5016.676537 | W26: 5183.080495 | X26: 5355.004098 | Y26: 5532.630435 | Z26: 5716.148665
C29: With Project
C31: Cases of diarrheal disease | F31: =SUM(F32:F34) -> 15388.69275 | G31: =SUM(G32:G34) -> 15899.13813 | H31: 16426.51506 | I31: 16971.38518 | J31: 17534.32872 | K31: 18115.94519 | L31: 17656.23224 | M31: 17146.08955 | N31: 16582.6774 | O31: 17132.72745 | P31: 17701.02274 | Q31: 18288.16847 | R31: 18894.78992 | S31: 19521.53311 | T31: 20169.06546 | U31: 20838.07656 | V31: 21529.27887 | W31: 22243.40847 | X31: 22981.22586 | Y31: 23743.51678 | Z31: 24531.093
D32: Age < 5 | F32: =F9*diarU5*(1-diarred*F$7) -> 4735.366218 | G32: 4892.439067 | H32: 5054.722048 | I32: 5222.387981 | J32: 5395.61542 | K32: 5574.58884 | L32: 5433.127237 | M32: 5276.147531 | N32: 5102.775893 | O32: 5272.03578 | P32: 5446.910044 | Q32: 5627.584915 | R32: 5814.252801 | S32: 6007.11249 | T32: 6206.369365 | U32: 6412.235622 | V32: 6624.930496 | W32: 6844.680493 | X32: 7071.719632 | Y32: 7306.289695 | Z32: 7548.640485
D33: Age 5-18 | F33: =F10*diar518*(1-diarred*F$7) -> 3330.723868 | G33: 3441.204507 | H33: 3555.349807 | I33: 3673.281325 | J33: 3795.12465 | K33: 3921.009537 | L33: 3821.50941 | M33: 3711.094286 | N33: 3589.149535 | O33: 3708.202195 | P33: 3831.203851 | Q33: 3958.285491 | R33: 4089.582449 | S33: 4225.234549 | T33: 4365.38625 | U33: 4510.186805 | V33: 4659.790418 | W33: 4814.356406 | X33: 4974.049372 | Y33: 5139.03938 | Z33: 5309.502133
D34: Age > 18 | F34: =F11*diar18*(1-diarred*F$7) -> 7322.60266 | G34: 7565.494553 | H34: 7816.443209 | I34: 8075.715872 | J34: 8343.58865 | K34: 8620.346811 | L34: 8401.595595 | M34: 8158.847737 | N34: 7890.751974 | O34: 8152.48947 | P34: 8422.908841 | Q34: 8702.298065 | R34: 8990.954673 | S34: 9289.186068 | T34: 9597.309845 | U34: 9915.654137 | V34: 10244.55796 | W34: 10584.37157 | X34: 10935.45686 | Y34: 11298.1877 | Z34: 11672.95038
C36: Cases of diarrheal disease averted | F36: =SUM(F37:F39) -> 0 | G36: 0 | H36: 0 | I36: 0 | J36: 0 | K36: 0 | L36: 1060.621725 | M36: 2191.605432 | N36: 3396.451998 | O36: 3509.11285 | P36: 3625.510681 | Q36: 3745.769446 | R36: 3870.017213 | S36: 3998.386299 | T36: 4131.013407 | U36: 4268.039778 | V36: 4409.611336 | W36: 4555.878844 | X36: 4706.998069 | Y36: 4863.129942 | Z36: 5024.440735
D37: Age < 5 | F37: =F17-F32 -> 0 | G37: 0 | H37: 0 | I37: 0 | J37: 0 | K37: 0 | L37: 326.3716008 | M37: 674.3947973 | N37: 1045.14687 | O37: 1079.814557 | P37: 1115.632178 | Q37: 1152.637874 | R37: 1190.871056 | S37: 1230.372438 | T37: 1271.184087 | U37: 1313.349465 | V37: 1356.913475 | W37: 1401.922511 | X37: 1448.424503 | Y37: 1496.468974 | Z37: 1546.107087
D38: Age 5-18 | F38: =F18-F33 -> 0 | G38: 0 | H38: 0 | I38: 0 | J38: 0 | K38: 0 | L38: 229.560636 | M38: 474.3503974 | N38: 735.1270132 | O38: 759.511293 | P38: 784.7044032 | Q38: 810.7331729 | R38: 837.625321 | S38: 865.4094859 | T38: 894.115256 | U38: 923.773201 | V38: 954.4149048 | W38: 986.0729988 | X38: 1018.781197 | Y38: 1052.574331 | Z38: 1087.488389
D39: Age > 18 | F39: =F19-F34 -> 0 | G39: 0 | H39: 0 | I39: 0 | J39: 0 | K39: 0 | L39: 504.6894881 | M39: 1042.860237 | N39: 1616.178115 | O39: 1669.787 | P39: 1725.1741 | Q39: 1782.398399 | R39: 1841.520837 | S39: 1902.604375 | T39: 1965.714065 | U39: 2030.917112 | V39: 2098.282956 | W39: 2167.883334 | X39: 2239.792369 | Y39: 2314.086638 | Z39: 2390.845259
C41: Treatment costs | F41: =F31*cost_treat/Tsh_USD -> 7127.394535 | G41: 7363.811343 | H41: 7608.070135 | I41: 7860.43103 | J41: 8121.162776 | K41: 8390.543035 | L41: 8177.623354 | M41: 7941.346741 | N41: 7680.397955 | O41: 7935.157975 | P41: 8198.368425 | Q41: 8470.309608 | R41: 8751.271122 | S41: 9041.552175 | T41: 9341.461897 | U41: 9651.319672 | V41: 9971.455478 | W41: 10302.21024 | X41: 10643.93619 | Y41: 10996.99724 | Z41: 11361.76939
C43: Total treatment cost savings | F43: =F21-F41 -> 0 | G43: 0 | H43: 0 | I43: 0 | J43: 0 | K43: 0 | L43: 491.2353252 | M43: 1015.059358 | N43: 1573.093557 | O43: 1625.27332 | P43: 1679.183894 | Q43: 1734.882691 | R43: 1792.429025 | S43: 1851.884181 | T43: 1913.311473 | U43: 1976.776318 | V43: 2042.346303 | W43: 2110.091254 | X43: 2180.083316 | Y43: 2252.397026 | Z43: 2327.109393
C45: Days spent treating for self or others | F45: =F31*sickdays -> 5201.378148 | G45: 5373.908687 | H45: 5552.162092 | I45: 5736.32819 | J45: 5926.603107 | K45: 6123.189474 | L45: 5967.806498 | M45: 5795.378269 | N45: 5604.944962 | O45: 5790.861876 | P45: 5982.945685 | Q45: 6181.400943 | R45: 6386.438994 | S45: 6598.27819 | T45: 6817.144125 | U45: 7043.269879 | V45: 7276.896259 | W45: 7518.272064 | X45: 7767.654342 | Y45: 8025.30867 | Z45: 8291.509434
C46: Opportunity cost of treatment | F46: =F45*wage/Tsh_USD*employ -> 42514.80693 | G46: 43925.02982 | H46: 45382.03004 | I46: 46887.35918 | J46: 48442.62033 | K46: 50049.46974 | L46: 48779.40688 | M46: 47370.02025 | N46: 45813.46445 | O46: 47333.10434 | P46: 48903.15093 | Q46: 50525.27622 | R46: 52201.20765 | S46: 53932.73 | T46: 55721.68722 | U46: 57569.98444 | V46: 59479.58996 | W46: 61452.53741 | X46: 63490.92783 | Y46: 65596.93199 | Z46: 67772.79265
C48: Opportunity cost savings | F48: =F24-F46 -> 0 | G48: 0 | H48: 0 | I48: 0 | J48: 0 | K48: 0 | L48: 2930.211721 | M48: 6054.814618 | N48: 9383.480671 | O48: 9694.732215 | P48: 10016.30802 | Q48: 10348.55055 | R48: 10691.81362 | S48: 11046.46277 | T48: 11412.8757 | U48: 11791.4426 | V48: 12182.56662 | W48: 12586.66429 | X48: 13004.16594 | Y48: 13435.51619 | Z48: 13881.1744
C50: Children stunted as a result of diarrhea | F50: =F32*stunt -> 2976.229639 | G50: 3074.951649 | H50: 3176.948283 | I50: 3282.328162 | J50: 3391.203509 | K50: 3503.690268 | L50: 3414.780097 | M50: 3316.11663 | N50: 3207.150652 | O50: 3313.532349 | P50: 3423.442743 | Q50: 3536.998882 | R50: 3654.321697 | S50: 3775.536128 | T50: 3900.771261 | U50: 4030.160463 | V50: 4163.841526 | W50: 4301.956811 | X50: 4444.653401 | Y50: 4592.083261 | Z50: 4744.403392
D51: Stunting cases averted | F51: =F26-F50 -> 0 | G51: 0 | H51: 0 | I51: 0 | J51: 0 | K51: 0 | L51: 205.1281331 | M51: 423.8645316 | N51: 656.8862782 | O51: 678.6753003 | P51: 701.1870678 | Q51: 724.4455542 | R51: 748.4755283 | S51: 773.3025805 | T51: 798.9531499 | U51: 825.4545528 | V51: 852.8350114 | W51: 881.1236841 | X51: 910.3506967 | Y51: 940.5471739 | Z51: 971.745273
C53: Present value of lifetime income gains due to decreased stunting | F53: =F51*$H58 -> 0 | G53: 0 | H53: 0 | I53: 0 | J53: 0 | K53: 0 | L53: 265761.0811 | M53: 549152.8367 | N53: 851052.4852 | O53: 879282.0313 | P53: 908447.9559 | Q53: 938581.3189 | R53: 969714.2103 | S53: 1001879.785 | T53: 1035112.296 | U53: 1069447.136 | V53: 1104920.867 | W53: 1141571.268 | X53: 1179437.368 | Y53: 1218559.493 | Z53: 1258979.304
D57: =J58 -> 1 | E57: Present value of lifetime earnings per child, age < 5 | F57: Annual wages, stunted child | G57: Annual wages, non-stunted child | H57: Increased wages | K57: Notes
E58: Present value/child (US$) | F58: =NPV(0.1,F59:F118) -> 7886.453434 | G58: =NPV(0.1,G59:G118) -> 9182.03916 | H58: 1295.585725 | J58: 1 | K58: Assumes average working age of 15-64, which matches the standard definition in dependency ratio statistics.
E59: Age 5 | F59: 0 | G59: 0 | H59: =G59-F59 -> 0 | J59: 2 | K59: Annual wages assume 250 working days.
E60: Age 6 | F60: 0 | G60: 0 | H60: =G60-F60 -> 0
E61: Age 7 | F61: 0 | G61: 0 | H61: 0
E62: Age 8 | F62: 0 | G62: 0 | H62: 0
E63: Age 9 | F63: 0 | G63: 0 | H63: 0
E64: Age 10 | F64: 0 | G64: 0 | H64: 0
E65: Age 11 | F65: 0 | G65: 0 | H65: 0
E66: Age 12 | F66: 0 | G66: 0 | H66: 0
E67: Age 13 | F67: 0 | G67: 0 | H67: 0
E68: Age 14 | F68: 0 | G68: 0 | H68: 0
D69: =J59 -> 2 | E69: Age 15 | F69: =(wage-(wage*rtnedu*stntyrs))*250/Tsh_USD -> 2063.117687 | G69: =wage*250/Tsh_USD -> 2402.04644 | H69: 338.9287526
E70: Age 16 | F70: 2063.117687 | G70: 2402.04644 | H70: 338.9287526
E71: Age 17 | F71: 2063.117687 | G71: 2402.04644 | H71: 338.9287526
E72: Age 18 | F72: 2063.117687 | G72: 2402.04644 | H72: 338.9287526
E73: Age 19 | F73: 2063.117687 | G73: 2402.04644 | H73: 338.9287526
E74: Age 20 | F74: 2063.117687 | G74: 2402.04644 | H74: 338.9287526
E75: Age 21 | F75: 2063.117687 | G75: 2402.04644 | H75: 338.9287526
E76: Age 22 | F76: 2063.117687 | G76: 2402.04644 | H76: 338.9287526
E77: Age 23 | F77: 2063.117687 | G77: 2402.04644 | H77: 338.9287526
E78: Age 24 | F78: 2063.117687 | G78: 2402.04644 | H78: 338.9287526
E79: Age 25 | F79: 2063.117687 | G79: 2402.04644 | H79: 338.9287526
E80: Age 26 | F80: 2063.117687 | G80: 2402.04644 | H80: 338.9287526
E81: Age 27 | F81: 2063.117687 | G81: 2402.04644 | H81: 338.9287526
E82: Age 28 | F82: 2063.117687 | G82: 2402.04644 | H82: 338.9287526
E83: Age 29 | F83: 2063.117687 | G83: 2402.04644 | H83: 338.9287526
E84: Age 30 | F84: 2063.117687 | G84: 2402.04644 | H84: 338.9287526
E85: Age 31 | F85: 2063.117687 | G85: 2402.04644 | H85: 338.9287526
E86: Age 32 | F86: 2063.117687 | G86: 2402.04644 | H86: 338.9287526
E87: Age 33 | F87: 2063.117687 | G87: 2402.04644 | H87: 338.9287526
E88: Age 34 | F88: 2063.117687 | G88: 2402.04644 | H88: 338.9287526
E89: Age 35 | F89: 2063.117687 | G89: 2402.04644 | H89: 338.9287526
E90: Age 36 | F90: 2063.117687 | G90: 2402.04644 | H90: 338.9287526
E91: Age 37 | F91: 2063.117687 | G91: 2402.04644 | H91: 338.9287526
E92: Age 38 | F92: 2063.117687 | G92: 2402.04644 | H92: 338.9287526
E93: Age 39 | F93: 2063.117687 | G93: 2402.04644 | H93: 338.9287526
E94: Age 40 | F94: 2063.117687 | G94: 2402.04644 | H94: 338.9287526
E95: Age 41 | F95: 2063.117687 | G95: 2402.04644 | H95: 338.9287526
E96: Age 42 | F96: 2063.117687 | G96: 2402.04644 | H96: 338.9287526
E97: Age 43 | F97: 2063.117687 | G97: 2402.04644 | H97: 338.9287526
E98: Age 44 | F98: 2063.117687 | G98: 2402.04644 | H98: 338.9287526
E99: Age 45 | F99: 2063.117687 | G99: 2402.04644 | H99: 338.9287526
E100: Age 46 | F100: 2063.117687 | G100: 2402.04644 | H100: 338.9287526
E101: Age 47 | F101: =(wage-(wage*rtnedu*stntyrs))*250/Tsh_USD -> 2063.117687 | G101: =wage*250/Tsh_USD -> 2402.04644 | H101: 338.9287526
E102: Age 48 | F102: 2063.117687 | G102: 2402.04644 | H102: 338.9287526
E103: Age 49 | F103: 2063.117687 | G103: 2402.04644 | H103: 338.9287526
E104: Age 50 | F104: 2063.117687 | G104: 2402.04644 | H104: 338.9287526
E105: Age 51 | F105: 2063.117687 | G105: 2402.04644 | H105: 338.9287526
E106: Age 52 | F106: 2063.117687 | G106: 2402.04644 | H106: 338.9287526
E107: Age 53 | F107: 2063.117687 | G107: 2402.04644 | H107: 338.9287526
E108: Age 54 | F108: 2063.117687 | G108: 2402.04644 | H108: 338.9287526
E109: Age 55 | F109: 2063.117687 | G109: 2402.04644 | H109: 338.9287526
E110: Age 56 | F110: 2063.117687 | G110: 2402.04644 | H110: 338.9287526
E111: Age 57 | F111: 2063.117687 | G111: 2402.04644 | H111: 338.9287526
E112: Age 58 | F112: 2063.117687 | G112: 2402.04644 | H112: 338.9287526
E113: Age 59 | F113: 2063.117687 | G113: 2402.04644 | H113: 338.9287526
E114: Age 60 | F114: 2063.117687 | G114: 2402.04644 | H114: 338.9287526
E115: Age 61 | F115: 2063.117687 | G115: 2402.04644 | H115: 338.9287526
E116: Age 62 | F116: 2063.117687 | G116: 2402.04644 | H116: 338.9287526
E117: Age 63 | F117: 2063.117687 | G117: 2402.04644 | H117: 338.9287526
E118: Age 64 | F118: 2063.117687 | G118: 2402.04644 | H118: 338.9287526

Sheet Commercial
B1: Tanzania: Morogoro Water Supply Activity | J1: Last updated: 2/8/2016
B2: Water Flow & Commercial Consumption
E4: =IF('ERR & Sensitivity Analysis'!$I$10="N","Note: Current calculations are based on user input and are not the original MCC estimates.",IF('ERR & Sensitivity Analysis'!$I$13="N","Note: Current calculations are based on user input and are not the original MCC estimates.","")) -> 
E5: All figures in 2014 US$ unless specified | F5: 2008 | G5: 2009 | H5: 2010 | I5: 2011 | J5: 2012 | K5: 2013 | L5: 2014 | M5: 2015 | N5: 2016 | O5: 2017 | P5: 2018 | Q5: 2019 | R5: 2020 | S5: 2021 | T5: 2022 | U5: 2023 | V5: 2024 | W5: 2025 | X5: 2026 | Y5: 2027 | Z5: 2028
E6: Year | F6: 0 | G6: 1 | H6: 2 | I6: 3 | J6: 4 | K6: 5 | L6: 6 | M6: 7 | N6: 8 | O6: 9 | P6: 10 | Q6: 11 | R6: 12 | S6: 13 | T6: 14 | U6: 15 | V6: 16 | W6: 17 | X6: 18 | Y6: 19 | Z6: 20
C7: Without Project
C9: Water produced by MORUWASA (m3) | F9: =cap_wop*365*(1-(nrw*techloss)) -> 5361120 | G9: 5361120 | H9: 5361120 | I9: 5361120 | J9: 5361120 | K9: 5361120 | L9: 5361120 | M9: 5361120 | N9: 5361120 | O9: 5361120 | P9: 5361120 | Q9: 5361120 | R9: 5361120 | S9: 5361120 | T9: 5361120 | U9: 5361120 | V9: 5361120 | W9: 5361120 | X9: 5361120 | Y9: 5361120 | Z9: 5361120
C11: Volume of water consumed from MORUWASA sources (m3) | G11: =G9 -> 5361120 | H11: =H9 -> 5361120 | I11: 5361120 | J11: 5361120 | K11: 5361120 | L11: 5361120 | M11: 5361120 | N11: 5361120 | O11: 5361120 | P11: 5361120 | Q11: 5361120 | R11: 5361120 | S11: 5361120 | T11: 5361120 | U11: 5361120 | V11: 5361120 | W11: 5361120 | X11: 5361120 | Y11: 5361120 | Z11: 5361120
D12: Domestic | G12: =Savings!G24 -> 5265487.546 | H12: =Savings!H24 -> 5361120 | I12: =Savings!I24 -> 5361120 | J12: =Savings!J24 -> 5361120 | K12: =Savings!K24 -> 5361120 | L12: =Savings!L24 -> 5361120 | M12: =Savings!M24 -> 5361120 | N12: =Savings!N24 -> 5361120 | O12: =Savings!O24 -> 5361120 | P12: =Savings!P24 -> 5361120 | Q12: =Savings!Q24 -> 5361120 | R12: =Savings!R24 -> 5361120 | S12: =Savings!S24 -> 5361120 | T12: =Savings!T24 -> 5361120 | U12: =Savings!U24 -> 5361120 | V12: =Savings!V24 -> 5361120 | W12: =Savings!W24 -> 5361120 | X12: =Savings!X24 -> 5361120 | Y12: =Savings!Y24 -> 5361120 | Z12: =Savings!Z24 -> 5361120
D13: Commercial and institutional | G13: =G11-G12 -> 95632.45387 | H13: =H11-H12 -> 0 | I13: 0 | J13: 0 | K13: 0 | L13: 0 | M13: 0 | N13: 0 | O13: 0 | P13: 0 | Q13: 0 | R13: 0 | S13: 0 | T13: 0 | U13: 0 | V13: 0 | W13: 0 | X13: 0 | Y13: 0 | Z13: 0
C15: Cost of water production and delivery (US$) | G15: =G9*cost_water -> 4342507.2 | H15: 4342507.2 | I15: 4342507.2 | J15: 4342507.2 | K15: 4342507.2 | L15: 4342507.2 | M15: 4342507.2 | N15: 4342507.2 | O15: 4342507.2 | P15: 4342507.2 | Q15: 4342507.2 | R15: 4342507.2 | S15: 4342507.2 | T15: 4342507.2 | U15: 4342507.2 | V15: 4342507.2 | W15: 4342507.2 | X15: 4342507.2 | Y15: 4342507.2 | Z15: 4342507.2
C17: With Project
C18: Benefits? | F18: 0 | G18: 0 | H18: 0 | I18: 0 | J18: 0 | K18: 0 | L18: 1 | M18: 1 | N18: =IF(1/Assumptions!$N$53+M18<=1, 1/Assumptions!$N$53+M18, 1) -> 1 | O18: =IF(1/Assumptions!$N$53+N18<=1, 1/Assumptions!$N$53+N18, 1) -> 1 | P18: =IF(1/Assumptions!$N$53+O18<=1, 1/Assumptions!$N$53+O18, 1) -> 1 | Q18: =IF(1/Assumptions!$N$53+P18<=1, 1/Assumptions!$N$53+P18, 1) -> 1 | R18: =IF(1/Assumptions!$N$53+Q18<=1, 1/Assumptions!$N$53+Q18, 1) -> 1 | S18: =IF(1/Assumptions!$N$53+R18<=1, 1/Assumptions!$N$53+R18, 1) -> 1 | T18: =IF(1/Assumptions!$N$53+S18<=1, 1/Assumptions!$N$53+S18, 1) -> 1 | U18: =IF(1/Assumptions!$N$53+T18<=1, 1/Assumptions!$N$53+T18, 1) -> 1 | V18: =IF(1/Assumptions!$N$53+U18<=1, 1/Assumptions!$N$53+U18, 1) -> 1 | W18: =IF(1/Assumptions!$N$53+V18<=1, 1/Assumptions!$N$53+V18, 1) -> 1 | X18: =IF(1/Assumptions!$N$53+W18<=1, 1/Assumptions!$N$53+W18, 1) -> 1 | Y18: =IF(1/Assumptions!$N$53+X18<=1, 1/Assumptions!$N$53+X18, 1) -> 1 | Z18: =IF(1/Assumptions!$N$53+Y18<=1, 1/Assumptions!$N$53+Y18, 1) -> 1
C20: Water produced by MORUWASA (m3) | F20: =IF(F18=0,F9,(cap_wp*365*(1-(nrw*techloss))*F18)) -> 5361120 | G20: 5361120 | H20: 5361120 | I20: 5361120 | J20: 5361120 | K20: 5361120 | L20: 9828720 | M20: 9828720 | N20: 9828720 | O20: 9828720 | P20: 9828720 | Q20: 9828720 | R20: 9828720 | S20: 9828720 | T20: 9828720 | U20: 9828720 | V20: 9828720 | W20: 9828720 | X20: 9828720 | Y20: 9828720 | Z20: 9828720
C22: Volume of water consumed from MORUWASA sources (m3) | G22: =SUM(G23:G24) -> 5361120 | H22: 5361120 | I22: 5361120 | J22: 5361120 | K22: 5361120 | L22: 9828720 | M22: 9828720 | N22: 9828720 | O22: 9828720 | P22: 9828720 | Q22: 9828720 | R22: 9828720 | S22: 9828720 | T22: 9828720 | U22: 9828720 | V22: 9828720 | W22: 9828720 | X22: 9828720 | Y22: 9828720 | Z22: 9828720
D23: Domestic | G23: =Savings!G44 -> 5265487.546 | H23: =Savings!H44 -> 5361120 | I23: =Savings!I44 -> 5361120 | J23: =Savings!J44 -> 5361120 | K23: =Savings!K44 -> 5361120 | L23: =Savings!L44 -> 6198660.624 | M23: =Savings!M44 -> 6404271.181 | N23: =Savings!N44 -> 6616701.874 | O23: =Savings!O44 -> 6836178.926 | P23: =Savings!P44 -> 7062936.066 | Q23: =Savings!Q44 -> 7297214.777 | R23: =Savings!R44 -> 7539264.55 | S23: =Savings!S44 -> 7789343.153 | T23: =Savings!T44 -> 8047716.902 | U23: =Savings!U44 -> 8314660.95 | V23: =Savings!V44 -> 8590459.574 | W23: =Savings!W44 -> 8875406.483 | X23: =Savings!X44 -> 9169805.125 | Y23: =Savings!Y44 -> 9473969.018 | Z23: =Savings!Z44 -> 9788222.075
D24: Commercial and institutional | G24: =G20-G23 -> 95632.45387 | H24: =H20-H23 -> 0 | I24: 0 | J24: 0 | K24: 0 | L24: 3630059.376 | M24: 3424448.819 | N24: 3212018.126 | O24: 2992541.074 | P24: 2765783.934 | Q24: 2531505.223 | R24: 2289455.45 | S24: 2039376.847 | T24: 1781003.098 | U24: 1514059.05 | V24: 1238260.426 | W24: 953313.5172 | X24: 658914.8746 | Y24: 354750.9823 | Z24: 40497.9253
C26: Additional volume of water available to enterprises (m3) | G26: =G24-G13 -> 0 | H26: 0 | I26: 0 | J26: 0 | K26: 0 | L26: 3630059.376 | M26: 3424448.819 | N26: 3212018.126 | O26: 2992541.074 | P26: 2765783.934 | Q26: 2531505.223 | R26: 2289455.45 | S26: 2039376.847 | T26: 1781003.098 | U26: 1514059.05 | V26: 1238260.426 | W26: 953313.5172 | X26: 658914.8746 | Y26: 354750.9823 | Z26: 40497.9253
C28: Value of additionalwater available to enterprises (US$) | G28: =commtariff*G26/Tsh_USD -> 0 | H28: 0 | I28: 0 | J28: 0 | K28: 0 | L28: =commtariff*L26/Tsh_USD -> 2360100.523 | M28: 2226421.833 | N28: 2088308.999 | O28: 1945614.94 | P28: 1798187.697 | Q28: 1645870.269 | R28: 1488500.447 | S28: 1325910.644 | T28: 1157927.711 | U28: 984372.7569 | V28: 805060.9578 | W28: 619801.3579 | X28: 428396.6677 | Y28: 230643.0535 | Z28: 26329.92047
C30: Cost of water production and delivery (US$) | G30: =G20*cost_water -> 4342507.2 | H30: 4342507.2 | I30: 4342507.2 | J30: 4342507.2 | K30: 4342507.2 | L30: 7961263.2 | M30: 7961263.2 | N30: 7961263.2 | O30: 7961263.2 | P30: 7961263.2 | Q30: 7961263.2 | R30: 7961263.2 | S30: 7961263.2 | T30: 7961263.2 | U30: 7961263.2 | V30: 7961263.2 | W30: 7961263.2 | X30: 7961263.2 | Y30: 7961263.2 | Z30: 7961263.2
C32: Increased water production and delivery costs | G32: =G30-G15 -> 0 | H32: 0 | I32: 0 | J32: 0 | K32: 0 | L32: 3618756 | M32: 3618756 | N32: 3618756 | O32: 3618756 | P32: 3618756 | Q32: 3618756 | R32: 3618756 | S32: 3618756 | T32: 3618756 | U32: 3618756 | V32: 3618756 | W32: 3618756 | X32: 3618756 | Y32: 3618756 | Z32: 3618756

Sheet Beneficiaries
B1: Tanzania: Morogoro Water Supply Activity | R1: Last updated: 2/8/2016
B2: Beneficiary Estimates
L5: 2008 | M5: 2009 | N5: 2010 | O5: 2011 | P5: 2012 | Q5: 2013 | R5: 2014 | S5: 2015 | T5: 2016 | U5: 2017 | V5: 2018 | W5: 2019 | X5: 2020 | Y5: 2021 | Z5: 2022 | AA5: 2023 | AB5: 2024 | AC5: 2025 | AD5: 2026 | AE5: 2027 | AF5: 2028
E6: Year | L6: 0 | M6: 1 | N6: 2 | O6: 3 | P6: 4 | Q6: 5 | R6: 6 | S6: 7 | T6: 8 | U6: 9 | V6: 10 | W6: 11 | X6: 12 | Y6: 13 | Z6: 14 | AA6: 15 | AB6: 16 | AC6: 17 | AD6: 18 | AE6: 19 | AF6: 20
C7: Tanzania Population | P7: 2012 Census
C8: Region | E8: Growth rate | F8: 2002 Census | G8: 2003 | H8: 2004 | I8: 2005 | J8: 2006 | K8: 2007
B9: =C31 -> 1 | C9: Tanzania Total | E9: 0.027 | F9: 34443603 | G9: =F9*(1+$E9) -> 35373580.28 | H9: 36328666.95 | I9: 37309540.96 | J9: 38316898.56 | K9: =J9*(1+$E9) -> 39351454.82 | L9: 40413944.1 | M9: 41505120.59 | N9: 42625758.85 | O9: 43776654.34 | P9: 44928923 | Q9: =P9*(1+$E9) -> 46142003.92 | R9: =Q9*(1+$E9) -> 47387838.03 | S9: 48667309.65 | T9: 49981327.01 | U9: 51330822.84 | V9: 52716755.06 | W9: 54140107.45 | X9: 55601890.35 | Y9: 57103141.39 | Z9: 58644926.2 | AA9: 60228339.21 | AB9: 61854504.37 | AC9: 63524575.99 | AD9: 65239739.54 | AE9: 67001212.51 | AF9: 68810245.25
B10: =C31 -> 1 | C10: Morogoro Region | E10: 0.024 | F10: 1753362 | G10: 1795442.688 | H10: 1838533.313 | I10: 1882658.112 | J10: 1927841.907 | K10: 1974110.112 | L10: 2021488.755 | M10: 2070004.485 | N10: 2119684.593 | O10: 2170557.023 | P10: 2218492 | Q10: 2271735.808 | R10: 2326257.467 | S10: 2382087.647 | T10: 2439257.75 | U10: 2497799.936 | V10: 2557747.135 | W10: 2619133.066 | X10: 2681992.259 | Y10: 2746360.074 | Z10: 2812272.715 | AA10: 2879767.261 | AB10: 2948881.675 | AC10: 3019654.835 | AD10: 3092126.551 | AE10: 3166337.588 | AF10: 3242329.69
B11: =C32 -> 2 | D11: Morogoro Municipal | E11: =RATE(10,,-F11,P11) -> 0.03317015882 | F11: 227921 | G11: =F11*(1+$E11) -> 235481.1758 | H11: 243292.1238 | I11: 251362.1622 | J11: 259699.885 | K11: 268314.1714 | L11: =K11*(1+$E11) -> 277214.1951 | M11: 286409.434 | N11: 295909.6804 | O11: =N11*(1+$E11) -> 305725.0515 | P11: 315866 | Q11: =P11*(1+$E11) -> 326343.3254 | R11: 337168.1853 | S11: 348352.1076 | T11: 359907.0023 | U11: 371845.1747 | V11: 384179.3382 | W11: 396922.6279 | X11: 410088.6145 | Y11: 423691.319 | Z11: 437745.2273 | AA11: 452265.306 | AB11: 467267.0181 | AC11: 482766.3393 | AD11: 498779.7754 | AE11: 515324.3798 | AF11: 532417.7713
B13: =C33 -> 3 | C13: Population of area served by MORUWASA | L13: =M13/(1+$E11) -> 249492.4245 | M13: 257768.1279 | N13: 266318.3376 | O13: =P13/(1+$E11) -> 275152.1592 | P13: 284279 | Q13: =P13*(1+$E11) -> 293708.5796 | R13: =Q13*(1+$E11) -> 303450.9398 | S13: 313516.4557 | T13: 323915.8463 | U13: 334660.1864 | V13: 345760.9179 | W13: 357229.8625 | X13: 369079.2337 | Y13: 381321.6505 | Z13: 393970.1502 | AA13: 407038.2027 | AB13: 420539.7245 | AC13: 434489.094 | AD13: 448901.1662 | AE13: 463791.2892 | AF13: 479175.3199
D14: Age < 5 | E14: 0.146 | L14: =L$13*$E14 -> 36425.89398 | M14: =M$13*$E14 -> 37634.14667 | N14: 38882.47729 | O14: 40172.21524 | P14: 41504.734 | Q14: 42881.45262 | R14: 44303.83721 | S14: 45773.40253 | T14: 47291.71356 | U14: 48860.38721 | V14: 50481.09401 | W14: 52155.55992 | X14: 53885.56813 | Y14: 55672.96098 | Z14: 57519.64194 | AA14: 59427.57759 | AB14: 61398.79978 | AC14: 63435.40772 | AD14: 65539.57027 | AE14: 67713.52822 | AF14: 69959.59671
D15: Age 5-18 | E15: =0.413-E14 -> 0.267 | L15: =L$13*$E15 -> 66614.47735 | M15: 68824.09015 | N15: 71106.99615 | O15: 73465.6265 | P15: 75902.493 | Q15: 78420.19075 | R15: 81021.40093 | S15: 83708.89367 | T15: 86485.53096 | U15: 89354.26976 | V15: 92318.16508 | W15: 95380.37328 | X15: 98544.15541 | Y15: 101812.8807 | Z15: 105190.0301 | AA15: 108679.2001 | AB15: 112284.1064 | AC15: 116008.5881 | AD15: 119856.6114 | AE15: 123832.2742 | AF15: 127939.8104
D16: Age > 18 | E16: =1-SUM(E14:E15) -> 0.587 | L16: 146452.0532 | M16: 151309.8911 | N16: 156328.8642 | O16: 161514.3174 | P16: 166871.773 | Q16: 172406.9362 | R16: 178125.7017 | S16: 184034.1595 | T16: 190138.6018 | U16: 196445.5294 | V16: 202961.6588 | W16: 209693.9293 | X16: 216649.5102 | Y16: 223835.8089 | Z16: 231260.4782 | AA16: 238931.425 | AB16: 246856.8183 | AC16: 255045.0982 | AD16: 263504.9846 | AE16: 272245.4868 | AF16: 281275.9128
B18: =C34 -> 4 | C18: Households
C19: Morogoro Region | E19: 4.3 | L19: =L10/$E19 -> 470113.664 | M19: =M10/$E19 -> 481396.3919 | N19: 492949.9053 | O19: 504780.7031 | P19: 515928.3721 | Q19: 528310.653 | R19: 540990.1087 | S19: 553973.8713 | T19: 567269.2442 | U19: 580883.7061 | V19: 594824.915 | W19: 609100.713 | X19: 623719.1301 | Y19: 638688.3892 | Z19: 654016.9106 | AA19: 669713.3164 | AB19: 685786.436 | AC19: 702245.3105 | AD19: 719099.1979 | AE19: 736357.5787 | AF19: 754030.1606
D20: Morogoro Municipal | E20: =hhsize -> 4.3 | L20: =L11/$E20 -> 64468.41747 | M20: =M11/$E20 -> 66606.84511 | N20: 68816.20474 | O20: 71098.84918 | P20: 73457.2093 | Q20: 75893.7966 | R20: 78411.20589 | S20: 81012.11804 | T20: 83699.30286 | U20: 86475.62203 | V20: 89344.03215 | W20: 92307.58788 | X20: 95369.44523 | Y20: 98532.86488 | Z20: 101801.2157 | AA20: 105177.9781 | AB20: 108666.7484 | AC20: 112271.2417 | AD20: 115995.2966 | AE20: 119842.879 | AF20: 123818.0863
C22: Households in area served by MORUWASA | E22: =hhsize -> 4.3 | L22: =L13/$E22 -> 58021.49408 | M22: =M13/$E22 -> 59946.07625 | N22: 61934.49712 | O22: 63988.87423 | P22: 66111.39535 | Q22: 68304.32083 | R22: 70569.986 | S22: 72910.80365 | T22: 75329.26658 | U22: 77827.95032 | V22: 80409.51579 | W22: 83076.7122 | X22: 85832.37994 | Y22: 88679.45361 | Z22: 91620.96517 | AA22: 94660.04714 | AB22: 97799.93594 | AC22: 101043.9753 | AD22: 104395.6201 | AE22: 107858.4394 | AF22: 111436.1209
C24: Beneficiaries
C25: Households using MORUWASA sources | M25: =Savings!G36 -> 54550.92939 | N25: =Savings!H36 -> 56360.39238 | O25: =Savings!I36 -> 58229.87555 | P25: =Savings!J36 -> 60161.36977 | Q25: =Savings!K36 -> 62156.93196 | R25: =Savings!L36 -> 64218.68726 | S25: =Savings!M36 -> 66348.83132 | T25: =Savings!N36 -> 68549.63259 | U25: =Savings!O36 -> 70823.43479 | V25: =Savings!P36 -> 73172.65937 | W25: =Savings!Q36 -> 75599.8081 | X25: =Savings!R36 -> 78107.46574 | Y25: =Savings!S36 -> 80698.30279 | Z25: =Savings!T36 -> 83375.07831 | AA25: =Savings!U36 -> 86140.6429 | AB25: =Savings!V36 -> 88997.9417 | AC25: =Savings!W36 -> 91950.01756 | AD25: =Savings!X36 -> 95000.01425 | AE25: =Savings!Y36 -> 98151.17981 | AF25: =Savings!Z36 -> 101406.87
C26: People using MORUWASA sources | E26: =hhsize -> 4.3 | M26: =M25*$E26 -> 234568.9964 | N26: =N25*$E26 -> 242349.6872 | O26: 250388.4649 | P26: 258693.89 | Q26: 267274.8074 | R26: 276140.3552 | S26: 285299.9747 | T26: 294763.4201 | U26: 304540.7696 | V26: 314642.4353 | W26: 325079.1748 | X26: 335862.1027 | Y26: 347002.702 | Z26: 358512.8367 | AA26: 370404.7645 | AB26: 382691.1493 | AC26: 395385.0755 | AD26: 408500.0613 | AE26: 422050.0732 | AF26: 436049.5411
D30: Notes
C31: 1 | D31: 2012 Tanzania Population and Housing Census General Report (2013). Table 1. Population projections based on 2012 population and average annual intercensal growth rate.
C32: 2 | D32: 2012 Tanzania Population and Housing Census General Report (2013). Table 5.0. Average annual growth rate calculated using populations in 2002 and 2012 censuses, and population growth projected at same rate over 20 years.
C33: 3 | D33: Percentage of population in each age category based on National Bureau of Statistics (2013). Population Distribution by Age and Sex. Table 1.2, p. vii.
C34: 4 | D34: Average household size from Impact Evaluation Baseline Report (2014), Table 24.

Sheet Poverty Scorecard
B1: 0 | K1: Last updated: 2/8/2016
B4: Poverty Scorecard
B7: Tanzania: Morogoro Water Supply Activity
K8: Bar Chart Data
C9: 2013 US$ | E9: 2005 PPP $ | K9: Activity/Sub-activity | L9: Morogoro Water Activity | M9: National Income Distribution
B10: MCC Cost (Millions US$) | C10: =Costs!C13/10^6 -> 14.34693748 | E10: =C10*(99.991/106.442) -> 13.4774302 | K10: Consump. <$1.25/day | L10: =E33 -> 0.0110460449 | M10: =R18 -> 0.1275879192
B11: 20-Year ERR | C11: =ERR!F45 -> 0.0316877432 | K11: Consump. >=$1.25/day and <$2/day | L11: =F33-E33 -> 0.05568098335 | M11: =R19 -> 0.1963626374
B12: Present Value (PV) of Investment Costs (Millions US$) | C12: =ERR!F42 -> 12.74273211 | E12: =C12*(99.991/106.442) -> 11.97044894 | K12: Consump. >=$2/day and <$4/day | L12: =G33 -> 0.1775864854 | M12: 0.2994062735
B13: Present Value (PV) of Benefit Stream (Millions US$) | C13: =ERR!F40 -> 7.69108528 | E13: 7.224961089 | K13: Consump. >$4/day | L13: =H33 -> 0.2914814816 | M13: 0.3766431699
E14: Consumption per day (2005 PPP $)
B15: Beneficiaries | C15: Total | E15: < $1.25 | F15: < $2 1 | G15: $2-$4 | H15: > $4
K16: National Poverty Statistics
B17: Beneficiary Households in Year 20 (#) | C17: =Beneficiaries!AF25 -> 101406.87 | K17: Poverty Category | L17: % of National HH | M17: Avg. HH Size | N17: % of Population | O17: 2028 Est. Pop | P17: Mean Annual Income/Capita | Q17: Total Income/Group | R17: Income Share/Group
B18: Beneficiary Individuals in Year 20 (#) | C18: =Beneficiaries!AF26 -> 436049.5411 | K18: <$1.25 / day | L18: 0.2801 | M18: 6.149358 | N18: =(L18*M18)/SUMPRODUCT(L$18:L$21,M$18:M$21) -> 0.3382852608 | O18: =N18*Beneficiaries!$AF$9 -> 23277491.76 | P18: 0.8848324 | Q18: =O18*P18 -> 20596678.9 | R18: =Q18/SUM(Q$18:Q$21) -> 0.1275879192
B19: National Population in Year 20 2 (#) | C19: =Beneficiaries!AF9 -> 68810245.25 | K19: $1.25 - $1.99 / day | L19: 0.2661 | M19: 5.540188 | N19: =(L19*M19)/SUMPRODUCT(L$18:L$21,M$18:M$21) -> 0.2895406644 | O19: =N19*Beneficiaries!$AF$9 -> 19923364.12 | P19: 1.59105 | Q19: =O19*P19 -> 31699068.49 | R19: =Q19/SUM(Q$18:Q$21) -> 0.1963626374
K20: $2 - $4 / day | L20: 0.2744 | M20: 4.730822 | N20: =(L20*M20)/SUMPRODUCT(L$18:L$21,M$18:M$21) -> 0.2549534567 | O20: =N20*Beneficiaries!$AF$9 -> 17543409.88 | P20: 2.755082 | Q20: 48333532.78 | R20: =Q20/SUM(Q$18:Q$21) -> 0.2994062735
B21: Beneficiary Population by Poverty Level 3 (%) | E21: =L44 -> 0.07775740624 | F21: =L48 -> 0.305875074 | G21: =L46 -> 0.4285626699 | H21: =L47 -> 0.2607096041 | K21: >$4 / day | L21: 0.1793 | M21: 3.328768 | N21: =(L21*M21)/SUMPRODUCT(L$18:L$21,M$18:M$21) -> 0.1172206181 | O21: =N21*Beneficiaries!$AF$9 -> 8065979.481 | P21: 7.538078 | Q21: 60801982.48 | R21: =Q21/SUM(Q$18:Q$21) -> 0.3766431699
B22: National Population by Poverty Level 3 (%) | E22: =M10 -> 0.1275879192 | F22: =M10+M11 -> 0.3239505566 | G22: =M12 -> 0.2994062735 | H22: =M13 -> 0.3766431699 | K22: < $2.00 / day | L22: =L18+L19 -> 0.5462 | M22: 5.852594 | N22: =N18+N19 -> 0.6278259252 | O22: =N22*Beneficiaries!$AF$9 -> 43200855.88 | P22: 1.228874 | Q22: =O22*P22 -> 53088408.57 | R22: =R18+R19 -> 0.3239505566
L23: =SUM(L18:L21) -> 0.9999 | N23: =SUM(N18:N21) -> 1 | R23: =SUM(R18:R21) -> 1
B24: The Magnitude of the Benefits5 | K24: Beneficiaries using own tap | L24: =Assumptions!C9/SUM(Assumptions!C9:C10) -> 0.5714285714 | M24: of total beneficiaries | P24: =Savings!F45 -> 0.9495412844 | Q24: of total benefits
B25: PV of Benefit Stream Per Beneficiary (2013 US$) | C25: =(C13*10^6)/C18 -> 17.6380997 | E25: =C25*P44 -> 0.3634378679 | F25: =C25*P45 -> 1.841349413 | G25: =C25*P46 -> 5.842964992 | H25: =C25*P47 -> 9.590347425 | K25: Poverty Category | L25: % of Beneficiary HH | M25: Avg. HH Size | N25: % of Ben. Pop. | O25: 2028 Est. Ben. | P25: Mean Annual Income/Capita | Q25: Total Income/Group | R25: Income Share/Group | S25: % female
B26: PV of Benefit Stream Per Beneficiary (2005 PPP $) | C26: =C25*(99.991/106.442) -> 16.56912898 | E26: =E25*(99.991/106.442) -> 0.341411434 | F26: =F25*(99.991/106.442) -> 1.729753003 | G26: 5.488847565 | H26: 9.009116978 | K26: <$1.25 / day | L26: 0.0043 | M26: 9 | N26: =(L26*M26)/SUMPRODUCT(L$26:L$29,M$26:M$29) -> 0.008492140913 | O26: =N26*Beneficiaries!$AF$13*'Poverty Scorecard'!$L$24 -> 2325.271051 | P26: 0.8981166 | Q26: =O26*P26 -> 2088.36453 | R26: =Q26/SUM(Q$28:Q$30) -> 0.001825731009 | S26: 0.5176938598
B27: PV of Benefit Stream as Share of Annual Consumption (%) | C27: =C25/(N49*365) -> 0.01308321399 | E27: =E26/(N44*365) -> 0.0009556615122 | F27: =F26/(N45*365) -> 0.002863274108 | G27: =G26/(N46*365) -> 0.005267161921 | H27: =H26/(N47*365) -> 0.003204198115 | K27: $1.25 - $1.99 / day | L27: 0.1895 | M27: 5.446753 | N27: =(L27*M27)/SUMPRODUCT(L$26:L$29,M$26:M$29) -> 0.2264921334 | O27: =N27*Beneficiaries!$AF$13*'Poverty Scorecard'!$L$24 -> 62016.82313 | P27: 1.653939 | Q27: =O27*P27 -> 102572.0424 | R27: =Q27/SUM(Q$26:Q$29) -> 0.0896725432
K28: $2 - $4 / day | L28: 0.3862 | M28: 5.474795 | N28: 0.463966216 | O28: =N28*Beneficiaries!$AF$13*'Poverty Scorecard'!$L$24 -> 127040.6629 | P28: 2.896048 | Q28: 367915.8576 | R28: 0.3216466189
B29: Cost Effectiveness | K29: >$4 / day | L29: 0.4199 | M29: 3.267276 | N29: 0.3010495097 | O29: =N29*Beneficiaries!$AF$13*'Poverty Scorecard'!$L$24 -> 82431.71149 | P29: 8.143406 | Q29: 671274.894 | R29: 0.5868551069
K30: < $2.00 / day | L30: =L26+L27 -> 0.1938 | M30: 5.526385 | N30: =N27 -> 0.2264921334 | O30: =N30*Beneficiaries!$AF$13*'Poverty Scorecard'!$L$24 -> 62016.82313 | P30: 1.637001 | Q30: =Q26+Q27 -> 104660.407 | R30: 0.09149827421
B32: PV of Benefit Stream/PV of All Costs | C32: =C13/C12 -> 0.6035664263 | E32: =C32*$P$44 -> 0.01243665128 | F32: =C32*$P$48 -> 0.07512741338 | G32: =C32*$P$46 -> 0.1999431662 | H32: =C32*$P$47 -> 0.3281766076 | L32: =SUM(L26:L29) -> 0.9999 | M32: =SUM(L28:L30) -> 0.9999 | N32: =SUM(N26:N29) -> 1 | R32: =SUM(R26:R29) -> 1
B33: PV of Benefit Stream/MCC Costs | C33: =C13/C10 -> 0.5360785387 | E33: =C33*$P$44 -> 0.0110460449 | F33: =C33*$P$48 -> 0.06672702825 | G33: =C33*$P$46 -> 0.1775864854 | H33: =C33*$P$47 -> 0.2914814816 | K33: Beneficiaries using other piped | L33: =Assumptions!C10/SUM(Assumptions!C9:C10) -> 0.4285714286 | M33: of total beneficiaries | N33: =SUM(N28:N30) -> 0.9915078591 | P33: =Savings!F46 -> 0.0504587156 | Q33: of total benefits | R33: =SUM(R28:R30) -> 1
K34: Poverty Category | L34: % of Beneficiary HH | M34: Avg. HH Size | N34: % of Ben. Pop. | O34: 2028 Est. Ben. | P34: Mean Annual Income/Capita | Q34: Total Income/Group | R34: Income Share/Group | S34: % female
K35: <$1.25 / day | L35: 0.1267 | M35: 5.419784 | N35: =(L35*M35)/SUMPRODUCT(L$35:L$38,M$35:M$38) -> 0.1701110933 | O35: =N35*Beneficiaries!$AF$13*'Poverty Scorecard'!$L$33 -> 34934.15896 | P35: 0.9841395 | Q35: =O35*P35 -> 34380.08573 | R35: =Q35/SUM(Q$35:Q$38) -> 0.05491948505 | S35: 0.5176938598
B36: Percent of Project Participants Who Are Female6 | C36: =(L24*S26)+(L33*S35) -> 0.5176938598 | K36: $1.25 - $1.99 / day | L36: 0.2117 | M36: 4.606979 | N36: =(L36*M36)/SUMPRODUCT(L$35:L$38,M$35:M$38) -> 0.2416079014 | O36: =N36*Beneficiaries!$AF$13*'Poverty Scorecard'!$L$33 -> 49616.80434 | P36: 1.656586 | Q36: =O36*P36 -> 82194.50344 | R36: =Q36/SUM(Q$35:Q$38) -> 0.1312992596
K37: $2 - $4 / day | L37: 0.3921 | M37: 3.926105 | N37: 0.3813579418 | O37: =N37*Beneficiaries!$AF$13*'Poverty Scorecard'!$L$33 -> 78315.99162 | P37: 2.788509 | Q37: 218384.8475 | R37: 0.3488526311
B38: Average Annual Consumption of Beneficiaries (2005 PPP $) | C38: =N49*365 -> 1348.147306 | K38: >$4 / day | L38: 0.2695 | M38: 3.099389 | N38: 0.2069230634 | O38: =N38*Beneficiaries!$AF$13*'Poverty Scorecard'!$L$33 -> 42493.89648 | P38: 6.849206 | Q38: 291049.4507 | R38: 0.4649286242
B39: National Average Income per capita 4 (2005 PPP $) | C39: =2.778978 *365 -> 1014.32697 | K39: < $2.00 / day | L39: =L35+L36 -> 0.3384 | M39: 4.911319 | N39: =N35+N36 -> 0.4117189948 | O39: =N39*Beneficiaries!$AF$13*'Poverty Scorecard'!$L$33 -> 84550.9633 | P39: 1.404801 | Q39: =Q35+Q36 -> 116574.5892 | R39: 0.1862187447
B41: National Population (2013) | C41: 46142003.92 | L41: =SUM(L37:L39) -> 1 | N41: =SUM(N37:N39) -> 1 | R41: =SUM(R37:R39) -> 1
K42: Total Beneficiary Statistics | L42: =SUM(L35:L38) -> 1 | N42: =SUM(N35:N38) -> 1 | R42: =SUM(R35:R38) -> 1
B43: NB: PV of benefits based on 10% discount rate, exclude MCC costs, and include local costs | K43: Poverty Category | L43: % of Ben. Population | M43: 2028 Est. Ben. | N43: Mean Annual Income/Capita | O43: Total Income/Group | P43: PV of Benefit Stream / Beneficiary
B44: NB: Beneficiaries for this project are defined as households connected or expected to be connected to the national electricity grid | K44: <$1.25 / day | L44: =M44/SUM(M$44:M$47) -> 0.07775740624 | M44: =O26+O35 -> 37259.43001 | N44: =((O26*P26)+(O35*P35))/M44 -> 0.9787710185 | O44: =M44*N44 -> 36468.45026 | P44: =O44/SUM(O$44:O$47) -> 0.02060527348
B45: 1 The beneficiaries and population living on less than $2 per day include those under $1.25 per day | K45: $1.25 - $1.99 / day | L45: =M45/SUM(M$44:M$47) -> 0.2329703197 | M45: =O27+O36 -> 111633.6275 | N45: =((O27*P27)+(O36*P36))/M45 -> 1.655115489 | O45: =M45*N45 -> 184766.5459 | P45: =O45/SUM(O$44:O$47) -> 0.1043961336
B46: 2 Based on 2012 Tanzania Census counts, using the intercensal growth rate (2002-2012) to project to 2028. | K46: $2 - $4 / day | L46: =M46/SUM(M$44:M$47) -> 0.4285626699 | M46: =O28+O37 -> 205356.6545 | N46: =((O28*P28)+(O37*P37))/M46 -> 2.85503631 | O46: 586300.7051 | P46: 0.3312695297
B47: 3 Based on MCC calculations using the 2010-11 Tanzania Panel Survey. | K47: >$4 / day | L47: =M47/SUM(M$44:M$47) -> 0.2607096041 | M47: =O29+O38 -> 124925.608 | N47: =((O29*P29)+(O38*P38))/M47 -> 7.703179198 | O47: 962324.3447 | P47: 0.5437290632
B48: 4 Based on MCC calculations using the 2010-11 Tanzania Panel Survey. | K48: < $2.00 / day | L48: =M48/SUM(M$44:M$47) -> 0.305875074 | M48: =O30+O39 -> 146567.7864 | N48: =((O30*P30)+(O39*P39))/M48 -> 1.503051145 | O48: 220298.8793 | P48: 0.1244724857
B49: 5 The distribution of benefits is based on current distribution of income and average water consumption. | L49: =SUM(L44:L47) -> 1 | N49: =SUMPRODUCT(L44:L47,N44:N47) -> 3.693554263 | O49: 0 | P49: =SUM(P46:P48) -> 0.9994710786
B50: 6 Based on MCC calculations using the 2010-11 Tanzania Panel Survey. | P50: =SUM(P44:P47) -> 1

Sheet Sensitivity
B1: Tanzania: Morogoro Water Supply Activity | J1: Last updated: 2/8/2016
B2: Sensitivity Analysis
C4: Basic sensitivity analysis using summary parameters
C6: Economic Rate of Return (ERR) | H6: Net Present Value (NPV), millions US$
C7: Column1 | D7: 80% Benefits | E7: 100% Benefits | F7: 120% Benefits | H7: Column1 | I7: 80% Benefits | J7: 100% Benefits | K7: 120% Benefits
C8: 80% Costs | D8: -0.059 | E8: 0.06 | F8: 0.134 | H8: 80% Costs | I8: -7.5 | J8: -2.5 | K8: 2.5
C9: 100% Costs | D9: -0.08 | E9: 0.032 | F9: 0.099 | H9: 100% Costs | I9: -10 | J9: -5.1 | K9: -0.1
C10: 120% Costs | D10: -0.097 | E10: 0.01 | F10: 0.073 | H10: 120% Costs | I10: -12.6 | J10: -7.6 | K10: -2.6
C12: Sensitivity analysis using Monte Carlo simulation
F13: Crystal Ball Report - Full
F14: Simulation started on 2/8/2016 at 3:06 PM
F15: Simulation stopped on 2/8/2016 at 3:07 PM
B17: Run preferences:
C18: Number of trials run | E18: 10000
C19: Monte Carlo
C20: Random seed
C21: Precision control on
C22: Confidence level | E22: 0.95
B24: Run statistics:
C25: Total running time (sec) | E25: 42.07433882
C26: Trials/second (average) | E26: 237.6745608
C27: Random numbers per sec | E27: 1663.721926
B29: Crystal Ball data:
C30: Assumptions | E30: 7
C31: Correlations | E31: 3
C32: Correlated groups | E32: 1
C33: Decision variables | E33: 0
C34: Forecasts | E34: 4
F36: Forecasts
A39: Worksheet: [TZA-Moro-ERR-020816.xlsm]ERR
A41: Forecast: Economic Rate of Return (ERR) | J41: Cell: F45
B43: Summary:
C44: Certainty level is 20.77%
C45: Certainty range is from 10.0% to Infinity
C46: Entire range is from -28.5% to 26.9%
C47: Base case is 3.2%
C48: After 9,224 trials, the std. error of the mean is 0.1%
B68: Statistics: | E68: Forecast values
C69: Trials | E69: 9224
C70: Base Case | E70: 0.0316877432
C71: Mean | E71: 0.04188049798
C72: Median | E72: 0.04823383664
C73: Mode | E73: ---
C74: Standard Deviation | E74: 0.07124707494
C75: Variance | E75: 0.005076145687
C76: Skewness | E76: -0.5021595424
C77: Kurtosis | E77: 3.420155152
C78: Coeff. of Variability | E78: 1.701199326
C79: Minimum | E79: -0.285352246
C80: Maximum | E80: 0.2690513096
C81: Range Width | E81: 0.5544035556
C82: Mean Std. Error | E82: 0.0007418351234
C83: Cell Errors | E83: 776
A85: Forecast: Economic Rate of Return (ERR) (cont'd) | J85: Cell: F45
B87: Percentiles: | E87: Forecast values
C88: 100% | E88: -0.285352246
C89: 90% | E89: -0.05219879614
C90: 80% | E90: -0.01380086509
C91: 70% | E91: 0.01047879201
C92: 60% | E92: 0.02988908479
C93: 50% | E93: 0.04816790811
C94: 40% | E94: 0.06540751751
C95: 30% | E95: 0.08255478707
C96: 20% | E96: 0.1016973371
C97: 10% | E97: 0.1270474093
C98: 0% | E98: 0.2690513096
A100: Forecast: Net Present Value (NPV) | J100: Cell: F43
B102: Summary:
C103: Certainty level is 19.16%
C104: Certainty range is from $0.0 to Infinity
C105: Entire range is from $(18.5) to $20.3
C106: Base case is $(5.1)
C107: After 10,000 trials, the std. error of the mean is $0.0
B127: Statistics: | E127: Forecast values
C128: Trials | E128: 10000
C129: Base Case | E129: -5.051646828
C130: Mean | E130: -4.08496057
C131: Median | E131: -4.439993594
C132: Mode | E132: ---
C133: Standard Deviation | E133: 4.829037592
C134: Variance | E134: 23.31960407
C135: Skewness | E135: 0.4412359416
C136: Kurtosis | E136: 3.410902964
C137: Coeff. of Variability | E137: -1.182150356
C138: Minimum | E138: -18.50473623
C139: Maximum | E139: 20.3041766
C140: Range Width | E140: 38.80891284
C141: Mean Std. Error | E141: 0.04829037592
A143: Forecast: Net Present Value (NPV) (cont'd) | J143: Cell: F43
B145: Percentiles: | E145: Forecast values
C146: 100% | E146: -18.50473623
C147: 90% | E147: -10.0799323
C148: 80% | E148: -8.150867874
C149: 70% | E149: -6.808158876
C150: 60% | E150: -5.624420123
C151: 50% | E151: -4.440928738
C152: 40% | E152: -3.166778255
C153: 30% | E153: -1.783889121
C154: 20% | E154: -0.1422159292
C155: 10% | E155: 2.235846188
C156: 0% | E156: 20.3041766
A158: Forecast: Present Value of Benefits | J158: Cell: F40
B160: Summary:
C161: Entire range is from $(5.8) to $33.0
C162: Base case is $7.7
C163: After 10,000 trials, the std. error of the mean is $0.0
B183: Statistics: | E183: Forecast values
C184: Trials | E184: 10000
C185: Base Case | E185: 7.69108528
C186: Mean | E186: 8.657771538
C187: Median | E187: 8.302738515
C188: Mode | E188: ---
C189: Standard Deviation | E189: 4.829037592
C190: Variance | E190: 23.31960407
C191: Skewness | E191: 0.4412359416
C192: Kurtosis | E192: 3.410902964
C193: Coeff. of Variability | E193: 0.5577691177
C194: Minimum | E194: -5.762004126
C195: Maximum | E195: 33.04690871
C196: Range Width | E196: 38.80891284
C197: Mean Std. Error | E197: 0.04829037592
A199: Forecast: Present Value of Benefits (cont'd) | J199: Cell: F40
B201: Percentiles: | E201: Forecast values
C202: 100% | E202: -5.762004126
C203: 90% | E203: 2.662799809
C204: 80% | E204: 4.591864234
C205: 70% | E205: 5.934573232
C206: 60% | E206: 7.118311985
C207: 50% | E207: 8.30180337
C208: 40% | E208: 9.575953853
C209: 30% | E209: 10.95884299
C210: 20% | E210: 12.60051618
C211: 10% | E211: 14.9785783
C212: 0% | E212: 33.04690871
A214: Forecast: Present Value of Costs | J214: Cell: F42
B216: Summary:
C217: Entire range is from $12.7 to $12.7
C218: Base case is $12.7
C219: After 10,000 trials, the std. error of the mean is $0.0
B239: Statistics: | E239: Forecast values
C240: Trials | E240: 10000
C241: Base Case | E241: 12.74273211
C242: Mean | E242: 12.74273211
C243: Median | E243: 12.74273211
C244: Mode | E244: 12.74273211
C245: Standard Deviation | E245: 0
C246: Variance | E246: 0
C247: Skewness | E247: ---
C248: Kurtosis | E248: ---
C249: Coeff. of Variability | E249: 0
C250: Minimum | E250: 12.74273211
C251: Maximum | E251: 12.74273211
C252: Range Width | E252: 0
C253: Mean Std. Error | E253: 0
A255: Forecast: Present Value of Costs (cont'd) | J255: Cell: F42
B257: Percentiles: | E257: Forecast values
C258: 100% | E258: 12.74273211
C259: 90% | E259: 12.74273211
C260: 80% | E260: 12.74273211
C261: 70% | E261: 12.74273211
C262: 60% | E262: 12.74273211
C263: 50% | E263: 12.74273211
C264: 40% | E264: 12.74273211
C265: 30% | E265: 12.74273211
C266: 20% | E266: 12.74273211
C267: 10% | E267: 12.74273211
C268: 0% | E268: 12.74273211
A270: End of Forecasts
F271: Assumptions
A274: Worksheet: [TZA-Moro-ERR-020816.xlsm]ERR & Sensitivity Analysis
A276: Assumption: Anticipated reduction in cases of disease (% of counterfactual) | J276: Cell: D17
B278: Triangular distribution with parameters:
C279: Minimum | E279: 0
C280: Likeliest | E280: 0.17
C281: Maximum | E281: 0.35
A286: Assumption: Cost of energy used to boil water (USD/kWh) | J286: Cell: D14
B288: Triangular distribution with parameters:
C289: Minimum | E289: 0.16
C290: Likeliest | E290: 0.2155
C291: Maximum | E291: 0.24
B296: Correlated with: | H296: Coefficient
C297: Volume of water treated by households (liters/person/day) (D13) | H297: -0.5
C298: Total cost per unit of water delivered (US$/m3) (D19) | H298: 0.25
A300: Assumption: Phase-in period of health benefits (years) | J300: Cell: D18
B302: Discrete Uniform distribution with parameters:
C303: Minimum | E303: 1
C304: Maximum | E304: 5
A310: Assumption: Proportion of NRW that is technical loss (%) | J310: Cell: D16
B312: Triangular distribution with parameters:
C313: Minimum | E313: 0.6
C314: Likeliest | E314: 0.8
C315: Maximum | E315: 0.9
A320: Assumption: Total cost per unit of water delivered (US$/m3) | J320: Cell: D19
B322: Triangular distribution with parameters:
C323: Minimum | E323: 0.4
C324: Likeliest | E324: 0.81
C325: Maximum | E325: 1
B330: Correlated with: | H330: Coefficient
C331: Value of commercial water (Tsh/m3) (D15) | H331: 0.5
C332: Cost of energy used to boil water (USD/kWh) (D14) | H332: 0.25
... 15 more rows
